Workbook

Sheet Descripción grafica (hidden)
B6: Especificaciones con intervalo de especificación, Límite de tolerancia bilaterla | I6: Especificaciones límite superior (LT) unico, límites máximos permisibles | P6: Especificaciones solo con límite inferior (LT) unico, límite mínimo permisible
B7: Ingresar | E7: Calculado | I7: Ingresar | L7: Calculado | P7: Ingresar | S7: Calculado
B8: ¿Incluye incertidumbre que aporta el muestreo? | D8: NO | E8: Factor (r) | G8: =IF(D8="si",1,3) -> 3 | I8: ¿Incluye incertidumbre que aporta el muestreo? | K8: SI | L8: Factor (r) | N8: =IF(K8="si",1,3) -> 1 | P8: ¿Incluye incertidumbre que aporta el muestreo? | R8: SI | S8: Factor (r) | U8: =IF(R8="si",1,3) -> 1
B9: Limite de especificación superiro (LT sup.) | D9: 10 | E9: Limite superior de aceptación (LA sup.) | G9: =D9-G11 -> 8.8 | I9: Limite de especificación superiro (LT sup.) | K9: 20 | L9: Limite superior de aceptación (LA sup.) | N9: =K9-N11 -> 16.5 | P9: Limite de especificación superiro (LT sup.) | R9: N.A. | S9: Limite superior de aceptación (LA sup.) | U9: N.A.
B10: Limite de especificación inferior (LT inf.) | D10: 5 | E10: Límite inferiro de aceptación (LA inf.) | G10: =D10+G11 -> 6.2 | I10: Limite de especificación inferior (LT inf.) | K10: N.A. | L10: Límite inferiro de aceptación (LA inf.) | N10: N.A. | P10: Limite de especificación inferior (LT inf.) | R10: 1.5 | S10: Límite inferiro de aceptación (LA inf.) | U10: =R10+U11 -> 2.1
B11: Medida (y) | D11: 12 | E11: Ancho de zona de seguridad (w) | G11: =D12*G8 -> 1.2 | I11: Medida (y) | K11: 26.807 | L11: Ancho de zona de seguridad (w) | N11: =K12*N8 -> 3.5 | P11: Medida (y) | R11: 2.1 | S11: Ancho de zona de seguridad (w) | U11: =R12*U8 -> 0.6
B12: Incertidumbre expandida (U) | D12: 0.4 | E12: Incertidumbre (u) | G12: =D12/D15 -> 0.200 | I12: Incertidumbre expandida (U) | K12: 3.5 | L12: Incertidumbre (u) | N12: =K12/K15 -> 1.750 | P12: Incertidumbre expandida (U) | R12: 0.6 | S12: Incertidumbre (u) | U12: =R12/R15 -> 0.300
B13: Incertidumbre exp. relativa (U%) | E13: Incertidumbre (u) | I13: Incertidumbre exp. relativa (U%) | L13: Incertidumbre (u) | P13: Incertidumbre exp. relativa (U%) | S13: Incertidumbre (u)
B14: Tipo de distribución de datos | D14: Normal | E14: Amplitud | G14: =G12/10 -> 0.020 | I14: Tipo de distribución de datos | K14: Normal | L14: Amplitud | N14: =N12/10 -> 0.175 | P14: Tipo de distribución de datos | R14: Normal | S14: Amplitud | U14: =U12/10 -> 0.030
B15: Factor de cobertura (k) | D15: 2 | E15: Probabilidad de cobertura | G15: =_xlfn.NORM.DIST(D11+D12,D11,G12,TRUE)-_xlfn.NORM.DIST(D11-D12,D11,G12,TRUE) -> 95.45% | I15: Factor de cobertura (k) | K15: 2 | L15: Probabilidad de cobertura | N15: =_xlfn.NORM.DIST(K11+K12,K11,N12,TRUE)-_xlfn.NORM.DIST(K11-K12,K11,N12,TRUE) -> 95.45% | P15: Factor de cobertura (k) | R15: 2 | S15: Probabilidad de cobertura | U15: =_xlfn.NORM.DIST(R11+R12,R11,U12,TRUE)-_xlfn.NORM.DIST(R11-R12,R11,U12,TRUE) -> 95.45%
B16: DECLARACIÓN DE CONFORMIDAD Y RIESGO ASOCIADO | I16: DECLARACIÓN DE CONFORMIDAD Y RIESGO ASOCIADO | P16: DECLARACIÓN DE CONFORMIDAD Y RIESGO ASOCIADO
B17: % Probabilidad de conformidad con respecto a intervalo de tolerancia. | D17: =IF(AND((_xlfn.NORM.DIST(D9,D11,G12,TRUE)-_xlfn.NORM.DIST(D10,D11,G12,TRUE))>=0.9999,(_xlfn.NORM.DIST(D9,D11,G12,TRUE)-_xlfn.NORM.DIST(D10,D11,G12,TRUE))<1),">99,99%",IF(AND((_xlfn.NORM.DIST(D9,D11,G12,TRUE)-_xlfn.NORM.DIST(D10,D11,G12,TRUE))<=0.0001,(_xlfn.NORM.DIST(D9,D11,G12,TRUE)-_xlfn.NORM.DIST(D10,D11,G12,TRUE))>0),"<0,01%",(_xlfn.NORM.DIST(D9,D11,G12,TRUE)-_xlfn.NORM.DIST(D10,D11,G12,TRUE)))) -> <0,01% | E17: Declaración de confomirdad | G17: =_xlfn.IFS(OR(_xlfn.IFS(D11<G9,"Conforme",AND(D11<=D9,D11>=G9),"Conforme, condicionado",D11>D9,"No conforme")="No conforme",_xlfn.IFS(D11>G10,"Conforme",AND(D11>=D10,D11<=G10),"Conforme, condicionado",D11<D10,"No conforme")="No conforme"),"No conforme",OR(_xlfn.IFS(D11<G9,"Conforme",AND(D11<=D9,D11>=G9),"Conforme, condicionado",D11>D9,"No conforme")="Conforme, condicionado",_xlfn.IFS(D11>G10,"Conforme",AND(D11>=D10,D11<=G10),"Conforme, condicionado",D11<D10,"No conforme")="Conforme, condicionado"),"Conforme, condicionado",AND(_xlfn.IFS(D11<G9,"Conforme",AND(D11<=D9,D11>=G9),"Conforme, condicionado",D11>D9,"No conforme")="Conforme",_xlfn.IFS(D11>G10,"Conforme",AND(D11>=D10,D11<=G10),"Conforme, condicionado",D11<D10,"No conforme")="Conforme"),"Conforme") -> No conforme | I17: % Probabilidad de conformidad con respecto LT sup. | K17: =IF(AND(_xlfn.NORM.DIST(K9,K11,N12,TRUE)>=0.9999,_xlfn.NORM.DIST(K9,K11,N12,TRUE)<1),">99,99%",IF(AND(_xlfn.NORM.DIST(K9,K11,N12,TRUE)<=0.0001,_xlfn.NORM.DIST(K9,K11,N12,TRUE)>0),"<0,01%",_xlfn.NORM.DIST(K9,K11,N12,TRUE))) -> <0,01% | L17: Declaración de conformidad limite sup. | N17: =_xlfn.IFS(K11<N9,"Conforme",AND(K11<=K9,K11>=N9),"Conforme, condicionado",K11>K9,"No conforme") -> No conforme | P17: % Probabilidad de conformidad con respecto a LT inf. | R17: =IF(AND(1-_xlfn.NORM.DIST(R10,R11,U12,TRUE)>=0.9999,1-_xlfn.NORM.DIST(R10,R11,U12,TRUE)<1),">99,99%",IF(AND(1-_xlfn.NORM.DIST(R10,R11,U12,TRUE)<=0.0001,1-_xlfn.NORM.DIST(R10,R11,U12,TRUE)>0),"<0,01%",1-_xlfn.NORM.DIST(R10,R11,U12,TRUE))) -> 97.72% | S17: Declaración de confomirdad limite inf. | U17: =_xlfn.IFS(R11>U10,"Conforme",AND(R11>=R10,R11<=U10),"Conforme, condicionado",R11<R10,"No conforme") -> Conforme, condicionado
B19: GRAFICO REPRESENTATIVO | I19: GRAFICO REPRESENTATIVO | P19: GRAFICO REPRESENTATIVO
A20: No | B20: u | C20: y | D20: LT sup. | E20: LT inf. | F20: LA sup. | G20: LA inf. | H20: No | I20: u | J20: y | K20: LT sup. | L20: LT inf. | M20: LA sup. | N20: LA inf. | O20: No | P20: u | Q20: y | R20: LT sup. | S20: LT inf. | T20: LA sup. | U20: LA inf.
A21: 0 | D21: =D22 -> 10 | E21: 5 | F21: 8.8 | G21: 6.2 | H21: 0 | K21: =K22 -> 20 | L21: N.A. | M21: 16.5 | N21: N.A. | O21: 0 | R21: =R22 -> N.A. | S21: 1.5 | T21: N.A. | U21: 2.1
A22: 2 | D22: 10 | E22: 5 | F22: 8.8 | G22: 6.2 | H22: 2 | K22: 20 | L22: N.A. | M22: 16.5 | N22: N.A. | O22: 2 | R22: N.A. | S22: 1.5 | T22: N.A. | U22: 2.1
A23: 3 | B23: =G12 -> 0.20 | C23: =D11 -> 12 | D23: =D9 -> 10 | E23: =D10 -> 5 | F23: =G9 -> 8.8 | G23: =G10 -> 6.2 | H23: 3 | I23: =N12 -> 1.75 | J23: =K11 -> 26.807 | K23: =K9 -> 20 | L23: =K10 -> N.A. | M23: =N9 -> 16.5 | N23: =N10 -> N.A. | O23: 3 | P23: =U12 -> 0.30 | Q23: =R11 -> 2.1 | R23: =R9 -> N.A. | S23: =R10 -> 1.5 | T23: =U9 -> N.A. | U23: =U10 -> 2.1
A24: 4 | D24: =D23 -> 10 | E24: 5 | F24: 8.8 | G24: 6.2 | H24: 4 | K24: =K23 -> 20 | L24: N.A. | M24: 16.5 | N24: N.A. | O24: 4 | R24: =R23 -> N.A. | S24: 1.5 | T24: N.A. | U24: 2.1
A25: 6 | D25: 10 | E25: 5 | F25: 8.8 | G25: 6.2 | H25: 6 | K25: 20 | L25: N.A. | M25: 16.5 | N25: N.A. | O25: 6 | R25: N.A. | S25: 1.5 | T25: N.A. | U25: 2.1
A26: -3σ | B26: -2σ | C26: -σ | D26: 0 | E26: σ | F26: 2σ | G26: 3σ | H26: -3σ | I26: -2σ | J26: -σ | K26: 0 | L26: σ | M26: 2σ | N26: 3σ | O26: -3σ | P26: -2σ | Q26: -σ | R26: 0 | S26: σ | T26: 2σ | U26: 3σ
A27: =$D$11+((-3)*$G$12) -> 11.4 | B27: =$D$11+((-2)*$G$12) -> 11.6 | C27: =$D$11+((-1)*$G$12) -> 11.8 | D27: =$D$11+((0)*$G$12) -> 12 | E27: =$D$11+((1)*$G$12) -> 12.2 | F27: =$D$11+((2)*$G$12) -> 12.4 | G27: =$D$11+((3)*$G$12) -> 12.6 | H27: =$K$11+((-3)*$N$12) -> 21.557 | I27: =$K$11+((-2)*$N$12) -> 23.307 | J27: =$K$11+((-1)*$N$12) -> 25.057 | K27: =$K$11+((0)*$N$12) -> 26.807 | L27: =$K$11+((1)*$N$12) -> 28.557 | M27: =$K$11+((2)*$N$12) -> 30.307 | N27: =$K$11+((3)*$N$12) -> 32.057 | O27: =$R$11+((-3)*$U$12) -> 1.2 | P27: =$R$11+((-2)*$U$12) -> 1.5 | Q27: =$R$11+((-1)*$U$12) -> 1.8 | R27: =$R$11+((0)*$U$12) -> 2.1 | S27: =$R$11+((1)*$U$12) -> 2.4 | T27: =$R$11+((2)*$U$12) -> 2.7 | U27: =$R$11+((3)*$U$12) -> 3
A28: Xi | B28: P(Y) | H28: Xi | I28: P(Y) | O28: Xi | P28: P(Y)
A29: =A27 -> 11 | B29: =_xlfn.NORM.DIST(A29,$D$11,$G$12,FALSE) -> 0.02215924206 | H29: =H27 -> 22 | I29: =_xlfn.NORM.DIST(H29,$K$11,$N$12,FALSE) -> 0.002532484807 | O29: =O27 -> 1 | P29: =_xlfn.NORM.DIST(O29,$R$11,$U$12,FALSE) -> 0.01477282804
A30: =A29+$G$14 -> 11 | B30: 0.0297626621 | H30: =H29+$N$14 -> 22 | I30: =_xlfn.NORM.DIST(H30,$K$11,$N$12,FALSE) -> 0.003401447097 | O30: =O29+$U$14 -> 1 | P30: =_xlfn.NORM.DIST(O30,$R$11,$U$12,FALSE) -> 0.01984177473
A31: 11 | B31: 0.03957725791 | H31: =H30+$N$14 -> 22 | I31: 0.00452311519 | O31: =O30+$U$14 -> 1 | P31: =_xlfn.NORM.DIST(O31,$R$11,$U$12,FALSE) -> 0.02638483861
A32: 11 | B32: 0.05210467407 | H32: 22 | I32: 0.005954819894 | O32: 1 | P32: 0.03473644938
A33: 11 | B33: 0.06791484617 | H33: 22 | I33: 0.007761696705 | O33: 1 | P33: 0.04527656411
A34: 12 | B34: 0.08764150247 | H34: 22 | I34: 0.01001617171 | O34: 1 | P34: 0.05842766831
A35: 12 | B35: 0.1119726515 | H35: 23 | I35: 0.01279687445 | O35: 1 | P35: 0.07464843432
A36: 12 | B36: 0.1416351887 | H36: 23 | I36: 0.01618687871 | O36: 1 | P36: 0.09442345914
A37: 12 | B37: 0.1773729642 | H37: 23 | I37: 0.02027119591 | O37: 1 | P37: 0.1182486428
A38: 12 | B38: 0.2199179799 | H38: 23 | I38: 0.02513348342 | O38: 1 | P38: 0.1466119866
A39: 12 | B39: 0.2699548326 | H39: 23 | I39: 0.03085198086 | O39: 2 | P39: 0.1799698884
A40: 12 | B40: 0.3280790739 | H40: 23 | I40: 0.0374947513 | O40: 2 | P40: 0.2187193826
A41: 12 | B41: 0.3947507915 | H41: 24 | I41: 0.04511437617 | O41: 2 | P41: 0.2631671943
A42: 12 | B42: 0.4702453869 | H42: 24 | I42: 0.05374232993 | O42: 2 | P42: 0.3134969246
A43: 12 | B43: 0.5546041734 | H43: 24 | I43: 0.0633833341 | O43: 2 | P43: 0.3697361156
A44: 12 | B44: 0.6475879783 | H44: 24 | I44: 0.07401005467 | O44: 2 | P44: 0.4317253189
A45: 12 | B45: 0.7486373282 | H45: 24 | I45: 0.08555855179 | O45: 2 | P45: 0.4990915521
A46: 12 | B46: 0.8568429602 | H46: 25 | I46: 0.09792490974 | O46: 2 | P46: 0.5712286402
A47: 12 | B47: 0.9709302749 | H47: 25 | I47: 0.11096346 | O47: 2 | P47: 0.6472868499
A48: 12 | B48: 1.089260885 | H48: 25 | I48: 0.1244869583 | O48: 2 | P48: 0.7261739234
A49: 12 | B49: 1.209853623 | H49: 25 | I49: 0.1382689854 | O49: 2 | P49: 0.8065690817
A50: 12 | B50: 1.330426249 | H50: 25 | I50: 0.1520487142 | O50: 2 | P50: 0.886950833
A51: 12 | B51: 1.448457764 | H51: 25 | I51: 0.1655380301 | O51: 2 | P51: 0.9656385092
A52: 12 | B52: 1.561269667 | H52: 26 | I52: 0.1784308191 | O52: 2 | P52: 1.040846445
A53: 12 | B53: 1.666123014 | H53: 26 | I53: 0.1904140588 | O53: 2 | P53: 1.110748676
A54: 12 | B54: 1.760326634 | H54: 26 | I54: 0.2011801867 | O54: 2 | P54: 1.173551089
A55: 12 | B55: 1.841350702 | H55: 26 | I55: 0.2104400802 | O55: 2 | P55: 1.227567134
A56: 12 | B56: 1.906939077 | H56: 26 | I56: 0.2179358945 | O56: 2 | P56: 1.271292718
A57: 12 | B57: 1.95521347 | H57: 26 | I57: 0.223452968 | O57: 2 | P57: 1.303475647
A58: 12 | B58: 1.984762737 | H58: 27 | I58: 0.2268300271 | O58: 2 | P58: 1.323175158
A59: 12 | B59: 1.994711402 | H59: 27 | I59: 0.2279670174 | O59: 2 | P59: 1.329807601
A60: 12 | B60: 1.984762737 | H60: 27 | I60: 0.2268300271 | O60: 2 | P60: 1.323175158
A61: 12 | B61: =_xlfn.NORM.DIST(A61,$D$11,$G$12,FALSE) -> 1.95521347 | H61: 27 | I61: 0.223452968 | O61: 2 | P61: 1.303475647
A62: =A61+$G$14 -> 12 | B62: 1.906939077 | H62: 27 | I62: 0.2179358945 | O62: 2 | P62: 1.271292718
A63: 12 | B63: 1.841350702 | H63: 28 | I63: 0.2104400802 | O63: 2 | P63: 1.227567134
A64: 12 | B64: 1.760326634 | H64: 28 | I64: 0.2011801867 | O64: 2 | P64: 1.173551089
A65: 12 | B65: 1.666123014 | H65: 28 | I65: 0.1904140588 | O65: 2 | P65: 1.110748676
A66: 12 | B66: 1.561269667 | H66: 28 | I66: 0.1784308191 | O66: 2 | P66: 1.040846445
A67: 12 | B67: 1.448457764 | H67: 28 | I67: 0.1655380301 | O67: 2 | P67: 0.9656385092
A68: 12 | B68: 1.330426249 | H68: 28 | I68: 0.1520487142 | O68: 2 | P68: 0.886950833
A69: 12 | B69: 1.209853623 | H69: 29 | I69: 0.1382689854 | O69: 2 | P69: 0.8065690817
A70: 12 | B70: 1.089260885 | H70: 29 | I70: 0.1244869583 | O70: 2 | P70: 0.7261739234
A71: 12 | B71: 0.9709302749 | H71: 29 | I71: 0.11096346 | O71: 2 | P71: 0.6472868499
A72: 12 | B72: 0.8568429602 | H72: 29 | I72: 0.09792490974 | O72: 2 | P72: 0.5712286402
A73: 12 | B73: 0.7486373282 | H73: 29 | I73: 0.08555855179 | O73: 3 | P73: 0.4990915521
A74: 12 | B74: 0.6475879783 | H74: 29 | I74: 0.07401005467 | O74: 3 | P74: 0.4317253189
A75: 12 | B75: 0.5546041734 | H75: 30 | I75: 0.0633833341 | O75: 3 | P75: 0.3697361156
A76: 12 | B76: 0.4702453869 | H76: 30 | I76: 0.05374232993 | O76: 3 | P76: 0.3134969246
A77: 12 | B77: 0.3947507915 | H77: 30 | I77: 0.04511437617 | O77: 3 | P77: 0.2631671943
A78: 12 | B78: 0.3280790739 | H78: 30 | I78: 0.0374947513 | O78: 3 | P78: 0.2187193826
A79: 12 | B79: 0.2699548326 | H79: 30 | I79: 0.03085198086 | O79: 3 | P79: 0.1799698884
A80: 12 | B80: 0.2199179799 | H80: 30 | I80: 0.02513348342 | O80: 3 | P80: 0.1466119866
A81: 12 | B81: 0.1773729642 | H81: 31 | I81: 0.02027119591 | O81: 3 | P81: 0.1182486428
A82: 12 | B82: 0.1416351887 | H82: 31 | I82: 0.01618687871 | O82: 3 | P82: 0.09442345914
A83: 12 | B83: 0.1119726515 | H83: 31 | I83: 0.01279687445 | O83: 3 | P83: 0.07464843432
A84: 13 | B84: 0.08764150247 | H84: 31 | I84: 0.01001617171 | O84: 3 | P84: 0.05842766831
A85: 13 | B85: 0.06791484617 | H85: 31 | I85: 0.007761696705 | O85: 3 | P85: 0.04527656411
A86: 13 | B86: 0.05210467407 | H86: 32 | I86: 0.005954819894 | O86: 3 | P86: 0.03473644938
A87: 13 | B87: 0.03957725791 | H87: 32 | I87: 0.00452311519 | O87: 3 | P87: 0.02638483861
A88: 13 | B88: 0.0297626621 | H88: 32 | I88: 0.003401447097 | O88: 3 | P88: 0.01984177473
A89: 13 | B89: 0.02215924206 | H89: 32 | I89: 0.002532484807 | O89: 3 | P89: 0.01477282804
A90: 13 | B90: 0.01633409528 | H90: 32 | I90: 0.001866753746 | O90: 3 | P90: 0.01088939685
A91: 13 | B91: 0.01192044101 | H91: 32 | I91: 0.001362336115 | O91: 3 | P91: 0.007946960672
A92: 13 | B92: 0.008612844695 | H92: 33 | I92: 0.000984325108 | O92: 3 | P92: 0.005741896464
A93: 13 | B93: =_xlfn.NORM.DIST(A93,$D$11,$G$12,FALSE) -> 0.006161095842 | H93: 33 | I93: 0.0007041252391 | O93: 3 | P93: 0.004107397228

Sheet Descripción grafica RD
D1: Se recomienda para su uso la consulta de: Tejada Ortiz, L.D. (2024). Definición de regla de decisión aplicable por laboratorios de ensayo que presenten información cuantitativa física, química y microbiológica a autoridades ambientales. Trabajo de Grado Especialización. Universidad de Antioquia, Medellín, Colombia.
B9: Y | C9: =_xlfn.IFS(E10="Normal","± U",E10="Lognormal","Yinf < ",E10="","") -> ± U | D9: =IF(E10="lognormal","Y < Ysup","") ->  | E9: Tipo de distribución | I9: Y | J9: =_xlfn.IFS(L10="Normal","± U",L10="Lognormal","Yinf < ",L10="","") -> ± U | K9: =IF(L10="lognormal","Y < Ysup","") ->  | L9: Tipo de distribución | P9: Y | Q9: =_xlfn.IFS(S10="Normal","± U",S10="Lognormal","Yinf < ",S10="","") -> ± U | R9: =IF(S10="lognormal","Y < Ysup","") ->  | S9: Tipo de distribución
B10: 8.940 | C10: 0.270 | D10: =IFERROR(IF(E10="Normal","",IF(E10="Lognormal",B10+G17,"")),"") ->  | E10: Normal | I10: 90.240 | J10: 2.230 | K10: =IFERROR(IF(L10="Normal","",IF(L10="Lognormal",I10+N17,"")),"") ->  | L10: Normal | P10: 4.810 | Q10: 0.160 | R10: =IFERROR(IF(S10="Normal","",IF(S10="Lognormal",P10+U17,"")),"") ->  | S10: Normal
B11: Especificaciones con intervalo de especificación, Límite de tolerancia bilateral | I11: Especificaciones límite superior (LT) único, límites máximos permisibles | P11: Especificaciones solo con límite inferior (LT) único, límite mínimo permisible
B12: Ingresar | E12: Calculado | I12: Ingresar | L12: Calculado | P12: Ingresar | S12: Calculado
B13: Tipo de regla de decisión | D13: Cornare | E13: Factor (r) | G13: =IFERROR(_xlfn.IFS(D13="6 Sigma",3,D13="3 Sigma",1.5,D13="Cornare",1.2,D13="Regla ILAC G8:2009",1,D13="ISO 14253-1:2017",0.83,D13="Aceptación Simple",0,D13="No critico",-1),"") -> 1.2 | I13: Tipo de regla de decisión | K13: Cornare | L13: Factor (r) | N13: =IFERROR(_xlfn.IFS(K13="6 Sigma",3,K13="3 Sigma",1.5,K13="Cornare",1.2,K13="Regla ILAC G8:2009",1,K13="ISO 14253-1:2017",0.83,K13="Aceptación Simple",0,K13="No critico",-1),"") -> 1.2 | P13: Tipo de regla de decisión | R13: Cornare | S13: Factor (r) | U13: =IFERROR(_xlfn.IFS(R13="6 Sigma",3,R13="3 Sigma",1.5,R13="Cornare",1.2,R13="Regla ILAC G8:2009",1,R13="ISO 14253-1:2017",0.83,R13="Aceptación Simple",0,R13="No critico",-1),"") -> 1.2
B14: Limite de especificación superior (LT sup.) | D14: 9.000 | E14: Limite superior de aceptación (LA sup.) | G14: =IFERROR(_xlfn.IFS(D19="Normal",D14-G16,D19="Lognormal",EXP(LN(D14)-(G13*D18/D20)),AND(D19<>"Normal",D19<>"Lognormal"),""),"") -> 8.676 | I14: Limite de especificación superior (LT sup.) | K14: 150.000 | L14: Limite superior de aceptación (LA sup.) | N14: =IFERROR(_xlfn.IFS(K19="Normal",K14-N16,K19="Lognormal",EXP(LN(K14)-(N13*K18/K20)),AND(K19<>"Normal",K19<>"Lognormal"),""),"") -> 147.324 | P14: Limite de especificación superior (LT sup.) | R14: N.A. | S14: Limite superior de aceptación (LA sup.) | U14: N.A.
B15: Limite de especificación inferior (LT inf.) | D15: 6.000 | E15: Límite inferior de aceptación (LA inf.) | G15: =IFERROR(_xlfn.IFS(D19="Normal",D15+G16,D19="Lognormal",EXP(LN(D15)+(G13*D18/D20)),AND(D19<>"Normal",D19<>"lognormal"),""),"") -> 6.324 | I15: Limite de especificación inferior (LT inf.) | K15: N.A. | L15: Límite inferior de aceptación (LA inf.) | N15: N.A. | P15: Limite de especificación inferior (LT inf.) | R15: 5.000 | S15: Límite inferior de aceptación (LA inf.) | U15: =IFERROR(_xlfn.IFS(R19="Normal",R15+U16,R19="Lognormal",EXP(LN(R15)+(U13*R18/R20)),AND(R19<>"Normal",R19<>"lognormal"),""),"") -> 5.192
B16: Medida (y) | D16: =B10 -> 8.940 | E16: Ancho de zona de seguridad (w) | G16: =IFERROR(_xlfn.IFS(D19="normal",D18*G13,D19="lognormal","",AND(D19<>"Normal",D19<>"Lognormal"),""),"") -> 0.324 | I16: Medida (y) | K16: =I10 -> 90.240 | L16: Ancho de zona de seguridad (w) | N16: =IFERROR(_xlfn.IFS(K19="normal",K18*N13,K19="lognormal","",AND(K19<>"Normal",K19<>"Lognormal"),""),"") -> 2.676 | P16: Medida (y) | R16: =P10 -> 4.810 | S16: Ancho de zona de seguridad (w) | U16: =IFERROR(_xlfn.IFS(R19="normal",R18*U13,R19="lognormal","",AND(R19<>"Normal",R19<>"Lognormal"),""),"") -> 0.192
B17: =_xlfn.IFS(D19="Normal","Incertidumbre exp. relativa (U%)",D19="lognormal","Incertidumbre exp. Relativa de los datos normalizados (U%)",AND(D19<>"Normal",D19<>"Lognormal"),"") -> Incertidumbre exp. relativa (U%) | D17: =IFERROR(_xlfn.IFS(E10="Normal",C10/B10,E10="lognormal",(LN(B10)-LN(C10))/LN(B10)),"") -> 3.02% | E17: Incertidumbre (U), valor error positivo | G17: =IFERROR(_xlfn.IFS(D19="Normal",D18,D19="Lognormal",EXP(LN(D16)+((LN(D16)*D17)))-D16,AND(D19<>"Normal",D19<>"Lognormal"),""),"") -> 0.270 | I17: =_xlfn.IFS(K19="Normal","Incertidumbre exp. relativa (U%)",K19="lognormal","Incertidumbre exp. Relativa de los datos normalizados (U%)",AND(K19<>"Normal",K19<>"Lognormal"),"") -> Incertidumbre exp. relativa (U%) | K17: =IFERROR(_xlfn.IFS(L10="Normal",J10/I10,L10="lognormal",(LN(I10)-LN(J10))/LN(I10)),"") -> 2.47% | L17: Incertidumbre (u), valor error positivo | N17: =IFERROR(_xlfn.IFS(K19="Normal",K18,K19="Lognormal",EXP(LN(K16)+((LN(K16)*K17)))-K16,AND(K19<>"Normal",K19<>"Lognormal"),""),"") -> 2.230 | P17: =_xlfn.IFS(R19="Normal","Incertidumbre exp. relativa (U%)",R19="lognormal","Incertidumbre exp. Relativa de los datos normalizados (U%)",AND(R19<>"Normal",R19<>"Lognormal"),"") -> Incertidumbre exp. relativa (U%) | R17: =IFERROR(_xlfn.IFS(S10="Normal",Q10/P10,S10="lognormal",(LN(P10)-LN(Q10))/LN(P10)),"") -> 3.33% | S17: Incertidumbre (u), valor error positivo | U17: =IFERROR(_xlfn.IFS(R19="Normal",R18,R19="Lognormal",EXP(LN(R16)+((LN(R16)*R17)))-R16,AND(R19<>"Normal",R19<>"Lognormal"),""),"") -> 0.160
B18: =_xlfn.IFS(D19="Normal","Incertidumbre exp. (U)",D19="lognormal","Incertidumbre exp. de los datos normalizados (U)",AND(D19<>"Normal",D19<>"Lognormal"),"") -> Incertidumbre exp. (U) | D18: =IFERROR(_xlfn.IFS(D19="normal",D17*D16,D19="lognormal",D17*LN(D16),AND(D19<>"Normal",D19<>"Lognormal"),""),"") -> 0.270 | E18: Incertidumbre (-U) valor error negativo | G18: =IFERROR(_xlfn.IFS(D19="Normal",G17,D19="Lognormal",D16-EXP(LN(D16)-((LN(D16)*D17))),AND(D19<>"Normal",D19<>"Lognormal"),""),"") -> 0.270 | I18: =_xlfn.IFS(K19="Normal","Incertidumbre exp. (U)",K19="lognormal","Incertidumbre exp. de los datos normalizados (U)",AND(K19<>"Normal",K19<>"Lognormal"),"") -> Incertidumbre exp. (U) | K18: =IFERROR(_xlfn.IFS(K19="normal",K17*K16,K19="lognormal",K17*LN(K16),AND(K19<>"Normal",K19<>"Lognormal"),""),"") -> 2.230 | L18: Incertidumbre (-u) valor error negativo | N18: =IFERROR(_xlfn.IFS(K19="Normal",N17,K19="Lognormal",K16-EXP(LN(K16)-((LN(K16)*K17))),AND(K19<>"Normal",K19<>"Lognormal"),""),"") -> 2.230 | P18: =_xlfn.IFS(R19="Normal","Incertidumbre exp. (U)",R19="lognormal","Incertidumbre exp. de los datos normalizados (U)",AND(R19<>"Normal",R19<>"Lognormal"),"") -> Incertidumbre exp. (U) | R18: =_xlfn.IFS(R19="normal",R17*R16,R19="lognormal",R17*LN(R16),AND(R19<>"Normal",R19<>"Lognormal"),"") -> 0.16 | S18: Incertidumbre (-u) valor error negativo | U18: =IFERROR(_xlfn.IFS(R19="Normal",U17,R19="Lognormal",R16-EXP(LN(R16)-((LN(R16)*R17))),AND(R19<>"Normal",R19<>"Lognormal"),""),"") -> 0.160
B19: Tipo de distribución de datos | D19: =E10 -> Normal | E19: Amplitud | G19: =IFERROR(B28/10,"") -> 0.014 | I19: Tipo de distribución de datos | K19: =L10 -> Normal | L19: Amplitud | N19: =IFERROR(I28/10,"") -> 0.112 | P19: Tipo de distribución de datos | R19: =S10 -> Normal | S19: Amplitud | U19: =IFERROR(P28/10,"") -> 0.008
B20: Factor de cobertura (k) | D20: =IF(E10="","",2) -> 2 | E20: Probabilidad de cobertura | G20: =IFERROR(_xlfn.IFS(D19="normal",_xlfn.NORM.DIST(D16+D18,D16,G17/D20,TRUE)-_xlfn.NORM.DIST(D16-D18,D16,G17/D20,TRUE),D19="lognormal",_xlfn.LOGNORM.DIST(D16+G17,LN(D16),D18/D20,TRUE)-_xlfn.LOGNORM.DIST(D16-G18,LN(D16),D18/D20,TRUE),AND(D19<>"Normal",D19<>"Lognormal"),""),"") -> 95.45% | I20: Factor de cobertura (k) | K20: =IF(L10="","",2) -> 2 | L20: Probabilidad de cobertura | N20: =IFERROR(_xlfn.IFS(K19="normal",_xlfn.NORM.DIST(K16+K18,K16,N17/K20,TRUE)-_xlfn.NORM.DIST(K16-K18,K16,N17/K20,TRUE),K19="lognormal",_xlfn.LOGNORM.DIST(K16+N17,LN(K16),K18/K20,TRUE)-_xlfn.LOGNORM.DIST(K16-N18,LN(K16),K18/K20,TRUE),AND(K19<>"Normal",K19<>"Lognormal"),""),"") -> 95.45% | P20: Factor de cobertura (k) | R20: =IF(S10="","",2) -> 2 | S20: Probabilidad de cobertura | U20: =IFERROR(_xlfn.IFS(R19="normal",_xlfn.NORM.DIST(R16+R18,R16,U17/R20,TRUE)-_xlfn.NORM.DIST(R16-R18,R16,U17/R20,TRUE),R19="lognormal",_xlfn.LOGNORM.DIST(R16+U17,LN(R16),R18/R20,TRUE)-_xlfn.LOGNORM.DIST(R16-U18,LN(R16),R18/R20,TRUE),AND(R19<>"Normal",R19<>"Lognormal"),""),"") -> 95.45%
B21: DECLARACIÓN DE CONFORMIDAD Y RIESGO ASOCIADO | I21: DECLARACIÓN DE CONFORMIDAD Y RIESGO ASOCIADO | P21: DECLARACIÓN DE CONFORMIDAD Y RIESGO ASOCIADO
B22: % Probabilidad de conformidad con respecto a intervalo de tolerancia. | D22: =IFERROR(_xlfn.IFS(D19="normal",IF(AND((_xlfn.NORM.DIST(D14,D16,G17/D20,TRUE)-_xlfn.NORM.DIST(D15,D16,G17/D20,TRUE))>=0.9999,(_xlfn.NORM.DIST(D14,D16,G17/D20,TRUE)-_xlfn.NORM.DIST(D15,D16,G17/D20,TRUE))<1),">99,99%",IF(AND((_xlfn.NORM.DIST(D14,D16,G17/D20,TRUE)-_xlfn.NORM.DIST(D15,D16,G17/D20,TRUE))<=0.0001,(_xlfn.NORM.DIST(D14,D16,G17/D20,TRUE)-_xlfn.NORM.DIST(D15,D16,G17/D20,TRUE))>0),"<0,01%",(_xlfn.NORM.DIST(D14,D16,G17/D20,TRUE)-_xlfn.NORM.DIST(D15,D16,G17/D20,TRUE)))),D19="lognormal",IF(AND((_xlfn.LOGNORM.DIST(D14,LN(D16),D18/D20,TRUE)-_xlfn.LOGNORM.DIST(D15,LN(D16),D18/D20,TRUE))>=0.9999,(_xlfn.LOGNORM.DIST(D14,LN(D16),D18/D20,TRUE)-_xlfn.LOGNORM.DIST(D15,LN(D16),D18/D20,TRUE))<1),">99,99%",IF(AND((_xlfn.LOGNORM.DIST(D14,LN(D16),D18/D20,TRUE)-_xlfn.LOGNORM.DIST(D15,LN(D16),D18/D20,TRUE))<=0.0001,(_xlfn.LOGNORM.DIST(D14,LN(D16),D18/D20,TRUE)-_xlfn.LOGNORM.DIST(D15,LN(D16),D18/D20,TRUE))>0),"<0,01%",(_xlfn.LOGNORM.DIST(D14,LN(D16),D18/D20,TRUE)-_xlfn.LOGNORM.DIST(D15,LN(D16),D18/D20,TRUE)))),AND(D19<>"Normal",D19<>"Lognormal"),""),"") -> 67.16% | E22: Declaración de conformidad | G22: =IF(D22="","",_xlfn.IFS(OR(_xlfn.IFS(D16<G14,"Conforme",AND(D16<=D14,D16>=G14),"Conforme con riesgo de afectación ambiental",D16>D14,"No conforme")="No conforme",_xlfn.IFS(D16>G15,"Conforme",AND(D16>=D15,D16<=G15),"Conforme con riesgo de afectación ambiental",D16<D15,"No conforme")="No conforme"),"No conforme",OR(_xlfn.IFS(D16<G14,"Conforme",AND(D16<=D14,D16>=G14),"Conforme con riesgo de afectación ambiental",D16>D14,"No conforme")="Conforme con riesgo de afectación ambiental",_xlfn.IFS(D16>G15,"Conforme",AND(D16>=D15,D16<=G15),"Conforme con riesgo de afectación ambiental",D16<D15,"No conforme")="Conforme con riesgo de afectación ambiental"),"Conforme con riesgo de afectación ambiental",AND(_xlfn.IFS(D16<G14,"Conforme",AND(D16<=D14,D16>=G14),"Conforme con riesgo de afectación ambiental",D16>D14,"No conforme")="Conforme",_xlfn.IFS(D16>G15,"Conforme",AND(D16>=D15,D16<=G15),"Conforme con riesgo de afectación ambiental",D16<D15,"No conforme")="Conforme"),"Conforme")) -> Conforme con riesgo de afectación ambiental | I22: % Probabilidad de conformidad con respecto LT superior | K22: =IFERROR(_xlfn.IFS(K19="normal",IF(AND(_xlfn.NORM.DIST(K14,K16,N17/K20,TRUE)>=0.9999,_xlfn.NORM.DIST(K14,K16,N17/K20,TRUE)<1),">99,99%",IF(AND(_xlfn.NORM.DIST(K14,K16,N17/K20,TRUE)<=0.0001,_xlfn.NORM.DIST(K14,K16,N17/K20,TRUE)>0),"<0,01%",_xlfn.NORM.DIST(K14,K16,N17/K20,TRUE))),K19="lognormal",IF(AND(_xlfn.LOGNORM.DIST(K14,LN(K16),K18/K20,TRUE)>=0.9999,_xlfn.LOGNORM.DIST(K14,LN(K16),K18/K20,TRUE)<1),">99,99%",IF(AND(_xlfn.LOGNORM.DIST(K14,LN(K16),K18/K20,TRUE)<=0.0001,_xlfn.LOGNORM.DIST(K14,LN(K16),K18/K20,TRUE)>0),"<0,01%",_xlfn.LOGNORM.DIST(K14,LN(K16),K18/K20,TRUE))),AND(K19<>"Normal",K19<>"Lognormal"),""),"") -> 100.00% | L22: Declaración de conformidad limite superior | N22: =IF(K22="","",_xlfn.IFS(K16<N14,"Conforme",AND(K16<=K14,K16>=N14),"Conforme con riesgo de afectación ambiental",K16>K14,"No conforme")) -> Conforme | P22: % Probabilidad de conformidad con respecto a LT inferior | R22: =IFERROR(_xlfn.IFS(R19="normal",IF(AND(1-_xlfn.NORM.DIST(R15,R16,U17/R20,TRUE)>=0.9999,1-_xlfn.NORM.DIST(R15,R16,U17/R20,TRUE)<1),">99,99%",IF(AND(1-_xlfn.NORM.DIST(R15,R16,U17/R20,TRUE)<=0.0001,1-_xlfn.NORM.DIST(R15,R16,U17/R20,TRUE)>0),"<0,01%",1-_xlfn.NORM.DIST(R15,R16,U17/R20,TRUE))),R19="lognormal",IF(AND(1-_xlfn.LOGNORM.DIST(R15,LN(R16),R18/R20,TRUE)>=0.9999,1-_xlfn.LOGNORM.DIST(R15,LN(R16),R18/R20,TRUE)<1),">99,99%",IF(AND(1-_xlfn.LOGNORM.DIST(R15,LN(R16),R18/R20,TRUE)<=0.0001,1-_xlfn.LOGNORM.DIST(R15,LN(R16),R18/R20,TRUE)>0),"<0,01%",1-_xlfn.LOGNORM.DIST(R15,LN(R16),R18/R20,TRUE))),AND(R19<>"Normal",R19<>"Lognormal"),""),"") -> 0.88% | S22: Declaración de conformidad limite inferior | U22: =IF(R22="","",_xlfn.IFS(R16>U15,"Conforme",AND(R16>=R15,R16<=U15),"Conforme con riesgo de afectación ambiental",R16<R15,"No conforme")) -> No conforme
B23: Riesgo Ambiental o de posible afectación ambiental | D23: =IFERROR(_xlfn.IFS(D19="normal",IF(AND((1-_xlfn.NORM.DIST(D14,D16,G17/D20,TRUE)+_xlfn.NORM.DIST(D15,D16,G17/D20,TRUE))>=0.9999,(1-_xlfn.NORM.DIST(D14,D16,G17/D20,TRUE)+_xlfn.NORM.DIST(D15,D16,G17/D20,TRUE))<1),">99,99%",IF(AND((1-_xlfn.NORM.DIST(D14,D16,G17/D20,TRUE)+_xlfn.NORM.DIST(D15,D16,G17/D20,TRUE))<=0.0001,(1-_xlfn.NORM.DIST(D14,D16,G17/D20,TRUE)+_xlfn.NORM.DIST(D15,D16,G17/D20,TRUE))>0),"<0,01%",(1-_xlfn.NORM.DIST(D14,D16,G17/D20,TRUE)+_xlfn.NORM.DIST(D15,D16,G17/D20,TRUE)))),D19="lognormal",IF(AND((1-_xlfn.LOGNORM.DIST(D14,LN(D16),D18/D20,TRUE)+_xlfn.LOGNORM.DIST(D15,LN(D16),D18/D20,TRUE))>=0.9999,(1-_xlfn.LOGNORM.DIST(D14,LN(D16),D18/D20,TRUE)+_xlfn.LOGNORM.DIST(D15,LN(D16),D18/D20,TRUE))<1),">99,99%",IF(AND((1-_xlfn.LOGNORM.DIST(D14,LN(D16),D18/D20,TRUE)+_xlfn.LOGNORM.DIST(D15,LN(D16),D18/D20,TRUE))<=0.0001,(1-_xlfn.LOGNORM.DIST(D14,LN(D16),D18/D20,TRUE)+_xlfn.LOGNORM.DIST(D15,LN(D16),D18/D20,TRUE))>0),"<0,01%",(1-_xlfn.LOGNORM.DIST(D14,LN(D16),D18/D20,TRUE)+_xlfn.LOGNORM.DIST(D15,LN(D16),D18/D20,TRUE)))),AND(D19<>"Normal",D19<>"Lognormal"),""),"") -> 32.84% | I23: Riesgo Ambiental o de posible afectación ambiental | K23: =IFERROR(_xlfn.IFS(K19="normal",IF(AND(1-_xlfn.NORM.DIST(K14,K16,N17/K20,TRUE)>=0.9999,1-_xlfn.NORM.DIST(K14,K16,N17/K20,TRUE)<1),">99,99%",IF(AND(1-_xlfn.NORM.DIST(K14,K16,N17/K20,TRUE)<=0.0001,1-_xlfn.NORM.DIST(K14,K16,N17/K20,TRUE)>0),"<0,01%",1-_xlfn.NORM.DIST(K14,K16,N17/K20,TRUE))),K19="lognormal",IF(AND(1-_xlfn.LOGNORM.DIST(K14,LN(K16),K18/K20,TRUE)>=0.9999,1-_xlfn.LOGNORM.DIST(K14,LN(K16),K18/K20,TRUE)<1),">99,99%",IF(AND(1-_xlfn.LOGNORM.DIST(K14,LN(K16),K18/K20,TRUE)<=0.0001,1-_xlfn.LOGNORM.DIST(K14,LN(K16),K18/K20,TRUE)>0),"<0,01%",1-_xlfn.LOGNORM.DIST(K14,LN(K16),K18/K20,TRUE))),AND(K19<>"Normal",K19<>"Lognormal"),""),"") -> 0.00% | P23: Riesgo Ambiental o de posible afectación ambiental | R23: =IFERROR(_xlfn.IFS(R19="normal",IF(AND(_xlfn.NORM.DIST(R15,R16,U17/R20,TRUE)>=0.9999,_xlfn.NORM.DIST(R15,R16,U17/R20,TRUE)<1),">99,99%",IF(AND(_xlfn.NORM.DIST(R15,R16,U17/R20,TRUE)<=0.0001,_xlfn.NORM.DIST(R15,R16,U17/R20,TRUE)>0),"<0,01%",_xlfn.NORM.DIST(R15,R16,U17/R20,TRUE))),R19="lognormal",IF(AND(1-_xlfn.LOGNORM.DIST(R15,LN(R16),R18/R20,TRUE)>=0.9999,_xlfn.LOGNORM.DIST(R15,LN(R16),R18/R20,TRUE)<1),">99,99%",IF(AND(1-_xlfn.LOGNORM.DIST(R15,LN(R16),R18/R20,TRUE)<=0.0001,_xlfn.LOGNORM.DIST(R15,LN(R16),R18/R20,TRUE)>0),"<0,01%",_xlfn.LOGNORM.DIST(R15,LN(R16),R18/R20,TRUE))),AND(R19<>"Normal",R19<>"Lognormal"),""),"") -> 99.12%
B24: GRAFICO REPRESENTATIVO | I24: GRAFICO REPRESENTATIVO | P24: GRAFICO REPRESENTATIVO
A25: No | B25: u | C25: y | D25: LT sup. | E25: LT inf. | F25: LA sup. | G25: LA inf. | H25: No | I25: u | J25: y | K25: LT sup. | L25: LT inf. | M25: LA sup. | N25: LA inf. | O25: No | P25: u | Q25: y | R25: LT sup. | S25: LT inf. | T25: LA sup. | U25: LA inf.
A26: 0 | D26: =D27 -> 9 | E26: 6 | F26: 9 | G26: 6 | H26: 0 | K26: =K27 -> 150 | L26: N.A. | M26: 147.324 | N26: N.A. | O26: 0 | R26: =R27 -> N.A. | S26: 5 | T26: N.A. | U26: 5.192
A27: 2 | D27: 9 | E27: 6 | F27: 9 | G27: 6 | H27: 2 | K27: 150 | L27: N.A. | M27: 147.324 | N27: N.A. | O27: 2 | R27: N.A. | S27: 5 | T27: N.A. | U27: 5.192
A28: 3 | B28: =_xlfn.IFS(D19="Normal",G17/D20,D19="Lognormal",D18/D20,AND(D19<>"Normal",D19<>"Lognormal"),"") -> 0.14 | C28: =D16 -> 8.94 | D28: =D14 -> 9 | E28: =D15 -> 6 | F28: =G14 -> 9 | G28: =G15 -> 6 | H28: 3 | I28: =_xlfn.IFS(K19="Normal",N17/K20,K19="Lognormal",K18/K20,AND(K19<>"Normal",K19<>"Lognormal"),"") -> 1.12 | J28: =K16 -> 90.24 | K28: =K14 -> 150 | L28: =K15 -> N.A. | M28: =N14 -> 147.324 | N28: =N15 -> N.A. | O28: 3 | P28: =_xlfn.IFS(R19="Normal",U17/R20,R19="Lognormal",R18/R20,AND(R19<>"Normal",R19<>"Lognormal"),"") -> 0.08 | Q28: =R16 -> 4.81 | R28: =R14 -> N.A. | S28: =R15 -> 5 | T28: =U14 -> N.A. | U28: =U15 -> 5.192
A29: 4 | D29: =D28 -> 9 | E29: 6 | F29: 9 | G29: 6 | H29: 4 | K29: =K28 -> 150 | L29: N.A. | M29: 147.324 | N29: N.A. | O29: 4 | R29: =R28 -> N.A. | S29: 5 | T29: N.A. | U29: 5.192
A30: 6 | D30: 9 | E30: 6 | F30: 9 | G30: 6 | H30: 6 | K30: 150 | L30: N.A. | M30: 147.324 | N30: N.A. | O30: 6 | R30: N.A. | S30: 5 | T30: N.A. | U30: 5.192
A31: -3σ | B31: -2σ | C31: -σ | D31: 0 | E31: σ | F31: 2σ | G31: 3σ | H31: -3σ | I31: -2σ | J31: -σ | K31: 0 | L31: σ | M31: 2σ | N31: 3σ | O31: -3σ | P31: -2σ | Q31: -σ | R31: 0 | S31: σ | T31: 2σ | U31: 3σ
A32: =_xlfn.IFS(D19="normal",$D$16+((-3)*$B$28),D19="lognormal",LN($D$16)+((-3)*$B$28),AND(D19<>"Normal",D19<>"Lognormal"),"") -> 8.535 | B32: =_xlfn.IFS(D19="normal",$D$16+((-2)*$B$28),D19="lognormal",LN($D$16)+((-2)*$B$28),AND(D19<>"Normal",D19<>"Lognormal"),"") -> 8.67 | C32: =_xlfn.IFS(D19="normal",$D$16+((-1)*$B$28),D19="lognormal",LN($D$16)+((-1)*$B$28),AND(D19<>"Normal",D19<>"Lognormal"),"") -> 8.805 | D32: =_xlfn.IFS(D19="normal",$D$16+((0)*$B$28),D19="lognormal",LN($D$16)+((0)*$B$28),AND(D19<>"Normal",D19<>"Lognormal"),"") -> 8.94 | E32: =_xlfn.IFS(D19="normal",$D$16+((1)*$B$28),D19="lognormal",LN($D$16)+((1)*$B$28),AND(D19<>"Normal",D19<>"Lognormal"),"") -> 9.075 | F32: =_xlfn.IFS(D19="normal",$D$16+((2)*$B$28),D19="lognormal",LN($D$16)+((2)*$B$28),AND(D19<>"Normal",D19<>"Lognormal"),"") -> 9.21 | G32: =_xlfn.IFS(D19="normal",$D$16+((3)*$B$28),D19="lognormal",LN($D$16)+((3)*$B$28),AND(D19<>"Normal",D19<>"Lognormal"),"") -> 9.345 | H32: =_xlfn.IFS(K19="normal",$K$16+((-3)*$I$28),K19="lognormal",LN($K$16)+((-3)*$I$28),AND(K19<>"Normal",K19<>"Lognormal"),"") -> 86.895 | I32: =_xlfn.IFS(K19="normal",$K$16+((-2)*$I$28),K19="lognormal",LN($K$16)+((-2)*$I$28),AND(K19<>"Normal",K19<>"Lognormal"),"") -> 88.01 | J32: =_xlfn.IFS(K19="normal",$K$16+((-1)*$I$28),K19="lognormal",LN($K$16)+((-1)*$I$28),AND(K19<>"Normal",K19<>"Lognormal"),"") -> 89.125 | K32: =_xlfn.IFS(K19="normal",$K$16+((0)*$I$28),K19="lognormal",LN($K$16)+((0)*$I$28),AND(K19<>"Normal",K19<>"Lognormal"),"") -> 90.24 | L32: =_xlfn.IFS(K19="normal",$K$16+((1)*$I$28),K19="lognormal",LN($K$16)+((1)*$I$28),AND(K19<>"Normal",K19<>"Lognormal"),"") -> 91.355 | M32: =_xlfn.IFS(K19="normal",$K$16+((2)*$I$28),K19="lognormal",LN($K$16)+((2)*$I$28),AND(K19<>"Normal",K19<>"Lognormal"),"") -> 92.47 | N32: =_xlfn.IFS(K19="normal",$K$16+((3)*$I$28),K19="lognormal",LN($K$16)+((3)*$I$28),AND(K19<>"Normal",K19<>"Lognormal"),"") -> 93.585 | O32: =_xlfn.IFS(R19="normal",$R$16+((-3)*$P$28),R19="lognormal",LN($R$16)+((-3)*$P$28),AND(R19<>"Normal",R19<>"Lognormal"),"") -> 4.57 | P32: =_xlfn.IFS(R19="normal",$R$16+((-2)*$P$28),R19="lognormal",LN($R$16)+((-2)*$P$28),AND(R19<>"Normal",R19<>"Lognormal"),"") -> 4.65 | Q32: =_xlfn.IFS(R19="normal",$R$16+((-1)*$P$28),R19="lognormal",LN($R$16)+((-1)*$P$28),AND(R19<>"Normal",R19<>"Lognormal"),"") -> 4.73 | R32: =_xlfn.IFS(R19="normal",$R$16+((0)*$P$28),R19="lognormal",LN($R$16)+((0)*$P$28),AND(R19<>"Normal",R19<>"Lognormal"),"") -> 4.81 | S32: =_xlfn.IFS(R19="normal",$R$16+((1)*$P$28),R19="lognormal",LN($R$16)+((1)*$P$28),AND(R19<>"Normal",R19<>"Lognormal"),"") -> 4.89 | T32: =_xlfn.IFS(R19="normal",$R$16+((2)*$P$28),R19="lognormal",LN($R$16)+((2)*$P$28),AND(R19<>"Normal",R19<>"Lognormal"),"") -> 4.97 | U32: =_xlfn.IFS(R19="normal",$R$16+((3)*$P$28),R19="lognormal",LN($R$16)+((3)*$P$28),AND(R19<>"Normal",R19<>"Lognormal"),"") -> 5.05
A33: Xi | B33: P(Y) | H33: Xi | I33: P(Y) | O33: Xi | P33: P(Y)
A34: =_xlfn.IFS(D19="normal",A32,D19="lognormal",EXP(A32),AND(D19<>"Normal",D19<>"Lognormal"),"") -> 9 | B34: =_xlfn.IFS($D$19="normal",_xlfn.NORM.DIST(A34,$D$16,$B$28,FALSE),$D$19="lognormal",_xlfn.LOGNORM.DIST(A34,LN($D$16),$B$28,FALSE),AND($D$19<>"Normal",$D$19<>"Lognormal"),"") -> 0.0328285 | H34: =_xlfn.IFS(K19="normal",H32,K19="lognormal",EXP(H32),AND(K19<>"Normal",K19<>"Lognormal"),"") -> 87 | I34: =_xlfn.IFS($K$19="normal",_xlfn.NORM.DIST(H34,$K$16,$I$28,FALSE),$K$19="lognormal",_xlfn.LOGNORM.DIST(H34,LN($K$16),$I$28,FALSE),AND($K$19<>"Normal",$K$19<>"Lognormal"),"") -> 0.0039748 | O34: =_xlfn.IFS(R19="normal",O32,R19="lognormal",EXP(O32),AND(R19<>"Normal",R19<>"Lognormal"),"") -> 5 | P34: =_xlfn.IFS($R$19="normal",_xlfn.NORM.DIST(O34,$R$16,$P$28,FALSE),$R$19="lognormal",_xlfn.LOGNORM.DIST(O34,LN($R$16),$P$28,FALSE),AND($R$19<>"Normal",$R$19<>"Lognormal"),"") -> 0.0553981
A35: =_xlfn.IFS($D$19="normal",A34+$G$19,$D$19="lognormal",EXP(LN(A34)+$G$19),AND($D$19<>"Normal",$D$19<>"Lognormal"),"") -> 9 | B35: =_xlfn.IFS($D$19="normal",_xlfn.NORM.DIST(A35,$D$16,$B$28,FALSE),$D$19="lognormal",_xlfn.LOGNORM.DIST(A35,LN($D$16),$B$28,FALSE),AND($D$19<>"Normal",$D$19<>"Lognormal"),"") -> 0.0440928 | H35: =_xlfn.IFS($K$19="normal",H34+$N$19,$K$19="lognormal",EXP(LN(H34)+$N$19),AND($K$19<>"Normal",$K$19<>"Lognormal"),"") -> 87 | I35: =_xlfn.IFS($K$19="normal",_xlfn.NORM.DIST(H35,$K$16,$I$28,FALSE),$K$19="lognormal",_xlfn.LOGNORM.DIST(H35,LN($K$16),$I$28,FALSE),AND($K$19<>"Normal",$K$19<>"Lognormal"),"") -> 0.0053386 | O35: =_xlfn.IFS($R$19="normal",O34+$U$19,$R$19="lognormal",EXP(LN(O34)+$U$19),AND($R$19<>"Normal",$R$19<>"Lognormal"),"") -> 5 | P35: =_xlfn.IFS($R$19="normal",_xlfn.NORM.DIST(O35,$R$16,$P$28,FALSE),$R$19="lognormal",_xlfn.LOGNORM.DIST(O35,LN($R$16),$P$28,FALSE),AND($R$19<>"Normal",$R$19<>"Lognormal"),"") -> 0.0744067
A36: =_xlfn.IFS($D$19="normal",A35+$G$19,$D$19="lognormal",EXP(LN(A35)+$G$19),AND($D$19<>"Normal",$D$19<>"Lognormal"),"") -> 9 | B36: =_xlfn.IFS($D$19="normal",_xlfn.NORM.DIST(A36,$D$16,$B$28,FALSE),$D$19="lognormal",_xlfn.LOGNORM.DIST(A36,LN($D$16),$B$28,FALSE),AND($D$19<>"Normal",$D$19<>"Lognormal"),"") -> 0.0586330 | H36: =_xlfn.IFS($K$19="normal",H35+$N$19,$K$19="lognormal",EXP(LN(H35)+$N$19),AND($K$19<>"Normal",$K$19<>"Lognormal"),"") -> 87 | I36: =_xlfn.IFS($K$19="normal",_xlfn.NORM.DIST(H36,$K$16,$I$28,FALSE),$K$19="lognormal",_xlfn.LOGNORM.DIST(H36,LN($K$16),$I$28,FALSE),AND($K$19<>"Normal",$K$19<>"Lognormal"),"") -> 0.0070991 | O36: =_xlfn.IFS($R$19="normal",O35+$U$19,$R$19="lognormal",EXP(LN(O35)+$U$19),AND($R$19<>"Normal",$R$19<>"Lognormal"),"") -> 5 | P36: =_xlfn.IFS($R$19="normal",_xlfn.NORM.DIST(O36,$R$16,$P$28,FALSE),$R$19="lognormal",_xlfn.LOGNORM.DIST(O36,LN($R$16),$P$28,FALSE),AND($R$19<>"Normal",$R$19<>"Lognormal"),"") -> 0.0989431
A37: =_xlfn.IFS($D$19="normal",A36+$G$19,$D$19="lognormal",EXP(LN(A36)+$G$19),AND($D$19<>"Normal",$D$19<>"Lognormal"),"") -> 9 | B37: =_xlfn.IFS($D$19="normal",_xlfn.NORM.DIST(A37,$D$16,$B$28,FALSE),$D$19="lognormal",_xlfn.LOGNORM.DIST(A37,LN($D$16),$B$28,FALSE),AND($D$19<>"Normal",$D$19<>"Lognormal"),"") -> 0.0771921 | H37: =_xlfn.IFS($K$19="normal",H36+$N$19,$K$19="lognormal",EXP(LN(H36)+$N$19),AND($K$19<>"Normal",$K$19<>"Lognormal"),"") -> 87 | I37: =_xlfn.IFS($K$19="normal",_xlfn.NORM.DIST(H37,$K$16,$I$28,FALSE),$K$19="lognormal",_xlfn.LOGNORM.DIST(H37,LN($K$16),$I$28,FALSE),AND($K$19<>"Normal",$K$19<>"Lognormal"),"") -> 0.0093461 | O37: =_xlfn.IFS($R$19="normal",O36+$U$19,$R$19="lognormal",EXP(LN(O36)+$U$19),AND($R$19<>"Normal",$R$19<>"Lognormal"),"") -> 5 | P37: =_xlfn.IFS($R$19="normal",_xlfn.NORM.DIST(O37,$R$16,$P$28,FALSE),$R$19="lognormal",_xlfn.LOGNORM.DIST(O37,LN($R$16),$P$28,FALSE),AND($R$19<>"Normal",$R$19<>"Lognormal"),"") -> 0.1302617
A38: =_xlfn.IFS($D$19="normal",A37+$G$19,$D$19="lognormal",EXP(LN(A37)+$G$19),AND($D$19<>"Normal",$D$19<>"Lognormal"),"") -> 9 | B38: =_xlfn.IFS($D$19="normal",_xlfn.NORM.DIST(A38,$D$16,$B$28,FALSE),$D$19="lognormal",_xlfn.LOGNORM.DIST(A38,LN($D$16),$B$28,FALSE),AND($D$19<>"Normal",$D$19<>"Lognormal"),"") -> 0.1006146 | H38: =_xlfn.IFS($K$19="normal",H37+$N$19,$K$19="lognormal",EXP(LN(H37)+$N$19),AND($K$19<>"Normal",$K$19<>"Lognormal"),"") -> 87 | I38: =_xlfn.IFS($K$19="normal",_xlfn.NORM.DIST(H38,$K$16,$I$28,FALSE),$K$19="lognormal",_xlfn.LOGNORM.DIST(H38,LN($K$16),$I$28,FALSE),AND($K$19<>"Normal",$K$19<>"Lognormal"),"") -> 0.0121820 | O38: =_xlfn.IFS($R$19="normal",O37+$U$19,$R$19="lognormal",EXP(LN(O37)+$U$19),AND($R$19<>"Normal",$R$19<>"Lognormal"),"") -> 5 | P38: =_xlfn.IFS($R$19="normal",_xlfn.NORM.DIST(O38,$R$16,$P$28,FALSE),$R$19="lognormal",_xlfn.LOGNORM.DIST(O38,LN($R$16),$P$28,FALSE),AND($R$19<>"Normal",$R$19<>"Lognormal"),"") -> 0.1697871
A39: =_xlfn.IFS($D$19="normal",A38+$G$19,$D$19="lognormal",EXP(LN(A38)+$G$19),AND($D$19<>"Normal",$D$19<>"Lognormal"),"") -> 9 | B39: =_xlfn.IFS($D$19="normal",_xlfn.NORM.DIST(A39,$D$16,$B$28,FALSE),$D$19="lognormal",_xlfn.LOGNORM.DIST(A39,LN($D$16),$B$28,FALSE),AND($D$19<>"Normal",$D$19<>"Lognormal"),"") -> 0.1298393 | H39: =_xlfn.IFS($K$19="normal",H38+$N$19,$K$19="lognormal",EXP(LN(H38)+$N$19),AND($K$19<>"Normal",$K$19<>"Lognormal"),"") -> 87 | I39: =_xlfn.IFS($K$19="normal",_xlfn.NORM.DIST(H39,$K$16,$I$28,FALSE),$K$19="lognormal",_xlfn.LOGNORM.DIST(H39,LN($K$16),$I$28,FALSE),AND($K$19<>"Normal",$K$19<>"Lognormal"),"") -> 0.0157204 | O39: =_xlfn.IFS($R$19="normal",O38+$U$19,$R$19="lognormal",EXP(LN(O38)+$U$19),AND($R$19<>"Normal",$R$19<>"Lognormal"),"") -> 5 | P39: =_xlfn.IFS($R$19="normal",_xlfn.NORM.DIST(O39,$R$16,$P$28,FALSE),$R$19="lognormal",_xlfn.LOGNORM.DIST(O39,LN($R$16),$P$28,FALSE),AND($R$19<>"Normal",$R$19<>"Lognormal"),"") -> 0.2191038
A40: =_xlfn.IFS($D$19="normal",A39+$G$19,$D$19="lognormal",EXP(LN(A39)+$G$19),AND($D$19<>"Normal",$D$19<>"Lognormal"),"") -> 9 | B40: =_xlfn.IFS($D$19="normal",_xlfn.NORM.DIST(A40,$D$16,$B$28,FALSE),$D$19="lognormal",_xlfn.LOGNORM.DIST(A40,LN($D$16),$B$28,FALSE),AND($D$19<>"Normal",$D$19<>"Lognormal"),"") -> 0.1658854 | H40: =_xlfn.IFS($K$19="normal",H39+$N$19,$K$19="lognormal",EXP(LN(H39)+$N$19),AND($K$19<>"Normal",$K$19<>"Lognormal"),"") -> 88 | I40: =_xlfn.IFS($K$19="normal",_xlfn.NORM.DIST(H40,$K$16,$I$28,FALSE),$K$19="lognormal",_xlfn.LOGNORM.DIST(H40,LN($K$16),$I$28,FALSE),AND($K$19<>"Normal",$K$19<>"Lognormal"),"") -> 0.0200848 | O40: =_xlfn.IFS($R$19="normal",O39+$U$19,$R$19="lognormal",EXP(LN(O39)+$U$19),AND($R$19<>"Normal",$R$19<>"Lognormal"),"") -> 5 | P40: =_xlfn.IFS($R$19="normal",_xlfn.NORM.DIST(O40,$R$16,$P$28,FALSE),$R$19="lognormal",_xlfn.LOGNORM.DIST(O40,LN($R$16),$P$28,FALSE),AND($R$19<>"Normal",$R$19<>"Lognormal"),"") -> 0.2799316
A41: =_xlfn.IFS($D$19="normal",A40+$G$19,$D$19="lognormal",EXP(LN(A40)+$G$19),AND($D$19<>"Normal",$D$19<>"Lognormal"),"") -> 9 | B41: =_xlfn.IFS($D$19="normal",_xlfn.NORM.DIST(A41,$D$16,$B$28,FALSE),$D$19="lognormal",_xlfn.LOGNORM.DIST(A41,LN($D$16),$B$28,FALSE),AND($D$19<>"Normal",$D$19<>"Lognormal"),"") -> 0.2098299 | H41: =_xlfn.IFS($K$19="normal",H40+$N$19,$K$19="lognormal",EXP(LN(H40)+$N$19),AND($K$19<>"Normal",$K$19<>"Lognormal"),"") -> 88 | I41: =_xlfn.IFS($K$19="normal",_xlfn.NORM.DIST(H41,$K$16,$I$28,FALSE),$K$19="lognormal",_xlfn.LOGNORM.DIST(H41,LN($K$16),$I$28,FALSE),AND($K$19<>"Normal",$K$19<>"Lognormal"),"") -> 0.0254054 | O41: =_xlfn.IFS($R$19="normal",O40+$U$19,$R$19="lognormal",EXP(LN(O40)+$U$19),AND($R$19<>"Normal",$R$19<>"Lognormal"),"") -> 5 | P41: =_xlfn.IFS($R$19="normal",_xlfn.NORM.DIST(O41,$R$16,$P$28,FALSE),$R$19="lognormal",_xlfn.LOGNORM.DIST(O41,LN($R$16),$P$28,FALSE),AND($R$19<>"Normal",$R$19<>"Lognormal"),"") -> 0.3540880
A42: =_xlfn.IFS($D$19="normal",A41+$G$19,$D$19="lognormal",EXP(LN(A41)+$G$19),AND($D$19<>"Normal",$D$19<>"Lognormal"),"") -> 9 | B42: =_xlfn.IFS($D$19="normal",_xlfn.NORM.DIST(A42,$D$16,$B$28,FALSE),$D$19="lognormal",_xlfn.LOGNORM.DIST(A42,LN($D$16),$B$28,FALSE),AND($D$19<>"Normal",$D$19<>"Lognormal"),"") -> 0.2627748 | H42: =_xlfn.IFS($K$19="normal",H41+$N$19,$K$19="lognormal",EXP(LN(H41)+$N$19),AND($K$19<>"Normal",$K$19<>"Lognormal"),"") -> 88 | I42: =_xlfn.IFS($K$19="normal",_xlfn.NORM.DIST(H42,$K$16,$I$28,FALSE),$K$19="lognormal",_xlfn.LOGNORM.DIST(H42,LN($K$16),$I$28,FALSE),AND($K$19<>"Normal",$K$19<>"Lognormal"),"") -> 0.0318158 | O42: =_xlfn.IFS($R$19="normal",O41+$U$19,$R$19="lognormal",EXP(LN(O41)+$U$19),AND($R$19<>"Normal",$R$19<>"Lognormal"),"") -> 5 | P42: =_xlfn.IFS($R$19="normal",_xlfn.NORM.DIST(O42,$R$16,$P$28,FALSE),$R$19="lognormal",_xlfn.LOGNORM.DIST(O42,LN($R$16),$P$28,FALSE),AND($R$19<>"Normal",$R$19<>"Lognormal"),"") -> 0.4434324
A43: =_xlfn.IFS($D$19="normal",A42+$G$19,$D$19="lognormal",EXP(LN(A42)+$G$19),AND($D$19<>"Normal",$D$19<>"Lognormal"),"") -> 9 | B43: =_xlfn.IFS($D$19="normal",_xlfn.NORM.DIST(A43,$D$16,$B$28,FALSE),$D$19="lognormal",_xlfn.LOGNORM.DIST(A43,LN($D$16),$B$28,FALSE),AND($D$19<>"Normal",$D$19<>"Lognormal"),"") -> 0.3258044 | H43: =_xlfn.IFS($K$19="normal",H42+$N$19,$K$19="lognormal",EXP(LN(H42)+$N$19),AND($K$19<>"Normal",$K$19<>"Lognormal"),"") -> 88 | I43: =_xlfn.IFS($K$19="normal",_xlfn.NORM.DIST(H43,$K$16,$I$28,FALSE),$K$19="lognormal",_xlfn.LOGNORM.DIST(H43,LN($K$16),$I$28,FALSE),AND($K$19<>"Normal",$K$19<>"Lognormal"),"") -> 0.0394472 | O43: =_xlfn.IFS($R$19="normal",O42+$U$19,$R$19="lognormal",EXP(LN(O42)+$U$19),AND($R$19<>"Normal",$R$19<>"Lognormal"),"") -> 5 | P43: =_xlfn.IFS($R$19="normal",_xlfn.NORM.DIST(O43,$R$16,$P$28,FALSE),$R$19="lognormal",_xlfn.LOGNORM.DIST(O43,LN($R$16),$P$28,FALSE),AND($R$19<>"Normal",$R$19<>"Lognormal"),"") -> 0.5497949
A44: =_xlfn.IFS($D$19="normal",A43+$G$19,$D$19="lognormal",EXP(LN(A43)+$G$19),AND($D$19<>"Normal",$D$19<>"Lognormal"),"") -> 9 | B44: =_xlfn.IFS($D$19="normal",_xlfn.NORM.DIST(A44,$D$16,$B$28,FALSE),$D$19="lognormal",_xlfn.LOGNORM.DIST(A44,LN($D$16),$B$28,FALSE),AND($D$19<>"Normal",$D$19<>"Lognormal"),"") -> 0.3999331 | H44: =_xlfn.IFS($K$19="normal",H43+$N$19,$K$19="lognormal",EXP(LN(H43)+$N$19),AND($K$19<>"Normal",$K$19<>"Lognormal"),"") -> 88 | I44: =_xlfn.IFS($K$19="normal",_xlfn.NORM.DIST(H44,$K$16,$I$28,FALSE),$K$19="lognormal",_xlfn.LOGNORM.DIST(H44,LN($K$16),$I$28,FALSE),AND($K$19<>"Normal",$K$19<>"Lognormal"),"") -> 0.0484224 | O44: =_xlfn.IFS($R$19="normal",O43+$U$19,$R$19="lognormal",EXP(LN(O43)+$U$19),AND($R$19<>"Normal",$R$19<>"Lognormal"),"") -> 5 | P44: =_xlfn.IFS($R$19="normal",_xlfn.NORM.DIST(O44,$R$16,$P$28,FALSE),$R$19="lognormal",_xlfn.LOGNORM.DIST(O44,LN($R$16),$P$28,FALSE),AND($R$19<>"Normal",$R$19<>"Lognormal"),"") -> 0.6748871
A45: =_xlfn.IFS($D$19="normal",A44+$G$19,$D$19="lognormal",EXP(LN(A44)+$G$19),AND($D$19<>"Normal",$D$19<>"Lognormal"),"") -> 9 | B45: =_xlfn.IFS($D$19="normal",_xlfn.NORM.DIST(A45,$D$16,$B$28,FALSE),$D$19="lognormal",_xlfn.LOGNORM.DIST(A45,LN($D$16),$B$28,FALSE),AND($D$19<>"Normal",$D$19<>"Lognormal"),"") -> 0.4860431 | H45: =_xlfn.IFS($K$19="normal",H44+$N$19,$K$19="lognormal",EXP(LN(H44)+$N$19),AND($K$19<>"Normal",$K$19<>"Lognormal"),"") -> 88 | I45: =_xlfn.IFS($K$19="normal",_xlfn.NORM.DIST(H45,$K$16,$I$28,FALSE),$K$19="lognormal",_xlfn.LOGNORM.DIST(H45,LN($K$16),$I$28,FALSE),AND($K$19<>"Normal",$K$19<>"Lognormal"),"") -> 0.0588483 | O45: =_xlfn.IFS($R$19="normal",O44+$U$19,$R$19="lognormal",EXP(LN(O44)+$U$19),AND($R$19<>"Normal",$R$19<>"Lognormal"),"") -> 5 | P45: =_xlfn.IFS($R$19="normal",_xlfn.NORM.DIST(O45,$R$16,$P$28,FALSE),$R$19="lognormal",_xlfn.LOGNORM.DIST(O45,LN($R$16),$P$28,FALSE),AND($R$19<>"Normal",$R$19<>"Lognormal"),"") -> 0.8201977
A46: =_xlfn.IFS($D$19="normal",A45+$G$19,$D$19="lognormal",EXP(LN(A45)+$G$19),AND($D$19<>"Normal",$D$19<>"Lognormal"),"") -> 9 | B46: =_xlfn.IFS($D$19="normal",_xlfn.NORM.DIST(A46,$D$16,$B$28,FALSE),$D$19="lognormal",_xlfn.LOGNORM.DIST(A46,LN($D$16),$B$28,FALSE),AND($D$19<>"Normal",$D$19<>"Lognormal"),"") -> 0.5848160 | H46: =_xlfn.IFS($K$19="normal",H45+$N$19,$K$19="lognormal",EXP(LN(H45)+$N$19),AND($K$19<>"Normal",$K$19<>"Lognormal"),"") -> 88 | I46: =_xlfn.IFS($K$19="normal",_xlfn.NORM.DIST(H46,$K$16,$I$28,FALSE),$K$19="lognormal",_xlfn.LOGNORM.DIST(H46,LN($K$16),$I$28,FALSE),AND($K$19<>"Normal",$K$19<>"Lognormal"),"") -> 0.0708073 | O46: =_xlfn.IFS($R$19="normal",O45+$U$19,$R$19="lognormal",EXP(LN(O45)+$U$19),AND($R$19<>"Normal",$R$19<>"Lognormal"),"") -> 5 | P46: =_xlfn.IFS($R$19="normal",_xlfn.NORM.DIST(O46,$R$16,$P$28,FALSE),$R$19="lognormal",_xlfn.LOGNORM.DIST(O46,LN($R$16),$P$28,FALSE),AND($R$19<>"Normal",$R$19<>"Lognormal"),"") -> 0.9868770
A47: =_xlfn.IFS($D$19="normal",A46+$G$19,$D$19="lognormal",EXP(LN(A46)+$G$19),AND($D$19<>"Normal",$D$19<>"Lognormal"),"") -> 9 | B47: =_xlfn.IFS($D$19="normal",_xlfn.NORM.DIST(A47,$D$16,$B$28,FALSE),$D$19="lognormal",_xlfn.LOGNORM.DIST(A47,LN($D$16),$B$28,FALSE),AND($D$19<>"Normal",$D$19<>"Lognormal"),"") -> 0.6966598 | H47: =_xlfn.IFS($K$19="normal",H46+$N$19,$K$19="lognormal",EXP(LN(H46)+$N$19),AND($K$19<>"Normal",$K$19<>"Lognormal"),"") -> 88 | I47: =_xlfn.IFS($K$19="normal",_xlfn.NORM.DIST(H47,$K$16,$I$28,FALSE),$K$19="lognormal",_xlfn.LOGNORM.DIST(H47,LN($K$16),$I$28,FALSE),AND($K$19<>"Normal",$K$19<>"Lognormal"),"") -> 0.0843489 | O47: =_xlfn.IFS($R$19="normal",O46+$U$19,$R$19="lognormal",EXP(LN(O46)+$U$19),AND($R$19<>"Normal",$R$19<>"Lognormal"),"") -> 5 | P47: =_xlfn.IFS($R$19="normal",_xlfn.NORM.DIST(O47,$R$16,$P$28,FALSE),$R$19="lognormal",_xlfn.LOGNORM.DIST(O47,LN($R$16),$P$28,FALSE),AND($R$19<>"Normal",$R$19<>"Lognormal"),"") -> 1.1756135
A48: =_xlfn.IFS($D$19="normal",A47+$G$19,$D$19="lognormal",EXP(LN(A47)+$G$19),AND($D$19<>"Normal",$D$19<>"Lognormal"),"") -> 9 | B48: =_xlfn.IFS($D$19="normal",_xlfn.NORM.DIST(A48,$D$16,$B$28,FALSE),$D$19="lognormal",_xlfn.LOGNORM.DIST(A48,LN($D$16),$B$28,FALSE),AND($D$19<>"Normal",$D$19<>"Lognormal"),"") -> 0.8216358 | H48: =_xlfn.IFS($K$19="normal",H47+$N$19,$K$19="lognormal",EXP(LN(H47)+$N$19),AND($K$19<>"Normal",$K$19<>"Lognormal"),"") -> 88 | I48: =_xlfn.IFS($K$19="normal",_xlfn.NORM.DIST(H48,$K$16,$I$28,FALSE),$K$19="lognormal",_xlfn.LOGNORM.DIST(H48,LN($K$16),$I$28,FALSE),AND($K$19<>"Normal",$K$19<>"Lognormal"),"") -> 0.0994806 | O48: =_xlfn.IFS($R$19="normal",O47+$U$19,$R$19="lognormal",EXP(LN(O47)+$U$19),AND($R$19<>"Normal",$R$19<>"Lognormal"),"") -> 5 | P48: =_xlfn.IFS($R$19="normal",_xlfn.NORM.DIST(O48,$R$16,$P$28,FALSE),$R$19="lognormal",_xlfn.LOGNORM.DIST(O48,LN($R$16),$P$28,FALSE),AND($R$19<>"Normal",$R$19<>"Lognormal"),"") -> 1.3865104
A49: =_xlfn.IFS($D$19="normal",A48+$G$19,$D$19="lognormal",EXP(LN(A48)+$G$19),AND($D$19<>"Normal",$D$19<>"Lognormal"),"") -> 9 | B49: =_xlfn.IFS($D$19="normal",_xlfn.NORM.DIST(A49,$D$16,$B$28,FALSE),$D$19="lognormal",_xlfn.LOGNORM.DIST(A49,LN($D$16),$B$28,FALSE),AND($D$19<>"Normal",$D$19<>"Lognormal"),"") -> 0.9593896 | H49: =_xlfn.IFS($K$19="normal",H48+$N$19,$K$19="lognormal",EXP(LN(H48)+$N$19),AND($K$19<>"Normal",$K$19<>"Lognormal"),"") -> 89 | I49: =_xlfn.IFS($K$19="normal",_xlfn.NORM.DIST(H49,$K$16,$I$28,FALSE),$K$19="lognormal",_xlfn.LOGNORM.DIST(H49,LN($K$16),$I$28,FALSE),AND($K$19<>"Normal",$K$19<>"Lognormal"),"") -> 0.1161593 | O49: =_xlfn.IFS($R$19="normal",O48+$U$19,$R$19="lognormal",EXP(LN(O48)+$U$19),AND($R$19<>"Normal",$R$19<>"Lognormal"),"") -> 5 | P49: =_xlfn.IFS($R$19="normal",_xlfn.NORM.DIST(O49,$R$16,$P$28,FALSE),$R$19="lognormal",_xlfn.LOGNORM.DIST(O49,LN($R$16),$P$28,FALSE),AND($R$19<>"Normal",$R$19<>"Lognormal"),"") -> 1.6189699
A50: =_xlfn.IFS($D$19="normal",A49+$G$19,$D$19="lognormal",EXP(LN(A49)+$G$19),AND($D$19<>"Normal",$D$19<>"Lognormal"),"") -> 9 | B50: =_xlfn.IFS($D$19="normal",_xlfn.NORM.DIST(A50,$D$16,$B$28,FALSE),$D$19="lognormal",_xlfn.LOGNORM.DIST(A50,LN($D$16),$B$28,FALSE),AND($D$19<>"Normal",$D$19<>"Lognormal"),"") -> 1.1090923 | H50: =_xlfn.IFS($K$19="normal",H49+$N$19,$K$19="lognormal",EXP(LN(H49)+$N$19),AND($K$19<>"Normal",$K$19<>"Lognormal"),"") -> 89 | I50: =_xlfn.IFS($K$19="normal",_xlfn.NORM.DIST(H50,$K$16,$I$28,FALSE),$K$19="lognormal",_xlfn.LOGNORM.DIST(H50,LN($K$16),$I$28,FALSE),AND($K$19<>"Normal",$K$19<>"Lognormal"),"") -> 0.1342847 | O50: =_xlfn.IFS($R$19="normal",O49+$U$19,$R$19="lognormal",EXP(LN(O49)+$U$19),AND($R$19<>"Normal",$R$19<>"Lognormal"),"") -> 5 | P50: =_xlfn.IFS($R$19="normal",_xlfn.NORM.DIST(O50,$R$16,$P$28,FALSE),$R$19="lognormal",_xlfn.LOGNORM.DIST(O50,LN($R$16),$P$28,FALSE),AND($R$19<>"Normal",$R$19<>"Lognormal"),"") -> 1.8715933
A51: =_xlfn.IFS($D$19="normal",A50+$G$19,$D$19="lognormal",EXP(LN(A50)+$G$19),AND($D$19<>"Normal",$D$19<>"Lognormal"),"") -> 9 | B51: =_xlfn.IFS($D$19="normal",_xlfn.NORM.DIST(A51,$D$16,$B$28,FALSE),$D$19="lognormal",_xlfn.LOGNORM.DIST(A51,LN($D$16),$B$28,FALSE),AND($D$19<>"Normal",$D$19<>"Lognormal"),"") -> 1.2693970 | H51: =_xlfn.IFS($K$19="normal",H50+$N$19,$K$19="lognormal",EXP(LN(H50)+$N$19),AND($K$19<>"Normal",$K$19<>"Lognormal"),"") -> 89 | I51: =_xlfn.IFS($K$19="normal",_xlfn.NORM.DIST(H51,$K$16,$I$28,FALSE),$K$19="lognormal",_xlfn.LOGNORM.DIST(H51,LN($K$16),$I$28,FALSE),AND($K$19<>"Normal",$K$19<>"Lognormal"),"") -> 0.1536938 | O51: =_xlfn.IFS($R$19="normal",O50+$U$19,$R$19="lognormal",EXP(LN(O50)+$U$19),AND($R$19<>"Normal",$R$19<>"Lognormal"),"") -> 5 | P51: =_xlfn.IFS($R$19="normal",_xlfn.NORM.DIST(O51,$R$16,$P$28,FALSE),$R$19="lognormal",_xlfn.LOGNORM.DIST(O51,LN($R$16),$P$28,FALSE),AND($R$19<>"Normal",$R$19<>"Lognormal"),"") -> 2.1421074
A52: =_xlfn.IFS($D$19="normal",A51+$G$19,$D$19="lognormal",EXP(LN(A51)+$G$19),AND($D$19<>"Normal",$D$19<>"Lognormal"),"") -> 9 | B52: =_xlfn.IFS($D$19="normal",_xlfn.NORM.DIST(A52,$D$16,$B$28,FALSE),$D$19="lognormal",_xlfn.LOGNORM.DIST(A52,LN($D$16),$B$28,FALSE),AND($D$19<>"Normal",$D$19<>"Lognormal"),"") -> 1.4384152 | H52: =_xlfn.IFS($K$19="normal",H51+$N$19,$K$19="lognormal",EXP(LN(H51)+$N$19),AND($K$19<>"Normal",$K$19<>"Lognormal"),"") -> 89 | I52: =_xlfn.IFS($K$19="normal",_xlfn.NORM.DIST(H52,$K$16,$I$28,FALSE),$K$19="lognormal",_xlfn.LOGNORM.DIST(H52,LN($K$16),$I$28,FALSE),AND($K$19<>"Normal",$K$19<>"Lognormal"),"") -> 0.1741579 | O52: =_xlfn.IFS($R$19="normal",O51+$U$19,$R$19="lognormal",EXP(LN(O51)+$U$19),AND($R$19<>"Normal",$R$19<>"Lognormal"),"") -> 5 | P52: =_xlfn.IFS($R$19="normal",_xlfn.NORM.DIST(O52,$R$16,$P$28,FALSE),$R$19="lognormal",_xlfn.LOGNORM.DIST(O52,LN($R$16),$P$28,FALSE),AND($R$19<>"Normal",$R$19<>"Lognormal"),"") -> 2.4273257
A53: =_xlfn.IFS($D$19="normal",A52+$G$19,$D$19="lognormal",EXP(LN(A52)+$G$19),AND($D$19<>"Normal",$D$19<>"Lognormal"),"") -> 9 | B53: =_xlfn.IFS($D$19="normal",_xlfn.NORM.DIST(A53,$D$16,$B$28,FALSE),$D$19="lognormal",_xlfn.LOGNORM.DIST(A53,LN($D$16),$B$28,FALSE),AND($D$19<>"Normal",$D$19<>"Lognormal"),"") -> 1.6137198 | H53: =_xlfn.IFS($K$19="normal",H52+$N$19,$K$19="lognormal",EXP(LN(H52)+$N$19),AND($K$19<>"Normal",$K$19<>"Lognormal"),"") -> 89 | I53: =_xlfn.IFS($K$19="normal",_xlfn.NORM.DIST(H53,$K$16,$I$28,FALSE),$K$19="lognormal",_xlfn.LOGNORM.DIST(H53,LN($K$16),$I$28,FALSE),AND($K$19<>"Normal",$K$19<>"Lognormal"),"") -> 0.1953831 | O53: =_xlfn.IFS($R$19="normal",O52+$U$19,$R$19="lognormal",EXP(LN(O52)+$U$19),AND($R$19<>"Normal",$R$19<>"Lognormal"),"") -> 5 | P53: =_xlfn.IFS($R$19="normal",_xlfn.NORM.DIST(O53,$R$16,$P$28,FALSE),$R$19="lognormal",_xlfn.LOGNORM.DIST(O53,LN($R$16),$P$28,FALSE),AND($R$19<>"Normal",$R$19<>"Lognormal"),"") -> 2.7231522
A54: =_xlfn.IFS($D$19="normal",A53+$G$19,$D$19="lognormal",EXP(LN(A53)+$G$19),AND($D$19<>"Normal",$D$19<>"Lognormal"),"") -> 9 | B54: =_xlfn.IFS($D$19="normal",_xlfn.NORM.DIST(A54,$D$16,$B$28,FALSE),$D$19="lognormal",_xlfn.LOGNORM.DIST(A54,LN($D$16),$B$28,FALSE),AND($D$19<>"Normal",$D$19<>"Lognormal"),"") -> 1.7923757 | H54: =_xlfn.IFS($K$19="normal",H53+$N$19,$K$19="lognormal",EXP(LN(H53)+$N$19),AND($K$19<>"Normal",$K$19<>"Lognormal"),"") -> 89 | I54: =_xlfn.IFS($K$19="normal",_xlfn.NORM.DIST(H54,$K$16,$I$28,FALSE),$K$19="lognormal",_xlfn.LOGNORM.DIST(H54,LN($K$16),$I$28,FALSE),AND($K$19<>"Normal",$K$19<>"Lognormal"),"") -> 0.2170141 | O54: =_xlfn.IFS($R$19="normal",O53+$U$19,$R$19="lognormal",EXP(LN(O53)+$U$19),AND($R$19<>"Normal",$R$19<>"Lognormal"),"") -> 5 | P54: =_xlfn.IFS($R$19="normal",_xlfn.NORM.DIST(O54,$R$16,$P$28,FALSE),$R$19="lognormal",_xlfn.LOGNORM.DIST(O54,LN($R$16),$P$28,FALSE),AND($R$19<>"Normal",$R$19<>"Lognormal"),"") -> 3.0246341
A55: =_xlfn.IFS($D$19="normal",A54+$G$19,$D$19="lognormal",EXP(LN(A54)+$G$19),AND($D$19<>"Normal",$D$19<>"Lognormal"),"") -> 9 | B55: =_xlfn.IFS($D$19="normal",_xlfn.NORM.DIST(A55,$D$16,$B$28,FALSE),$D$19="lognormal",_xlfn.LOGNORM.DIST(A55,LN($D$16),$B$28,FALSE),AND($D$19<>"Normal",$D$19<>"Lognormal"),"") -> 1.9710019 | H55: =_xlfn.IFS($K$19="normal",H54+$N$19,$K$19="lognormal",EXP(LN(H54)+$N$19),AND($K$19<>"Normal",$K$19<>"Lognormal"),"") -> 89 | I55: =_xlfn.IFS($K$19="normal",_xlfn.NORM.DIST(H55,$K$16,$I$28,FALSE),$K$19="lognormal",_xlfn.LOGNORM.DIST(H55,LN($K$16),$I$28,FALSE),AND($K$19<>"Normal",$K$19<>"Lognormal"),"") -> 0.2386415 | O55: =_xlfn.IFS($R$19="normal",O54+$U$19,$R$19="lognormal",EXP(LN(O54)+$U$19),AND($R$19<>"Normal",$R$19<>"Lognormal"),"") -> 5 | P55: =_xlfn.IFS($R$19="normal",_xlfn.NORM.DIST(O55,$R$16,$P$28,FALSE),$R$19="lognormal",_xlfn.LOGNORM.DIST(O55,LN($R$16),$P$28,FALSE),AND($R$19<>"Normal",$R$19<>"Lognormal"),"") -> 3.3260656
A56: =_xlfn.IFS($D$19="normal",A55+$G$19,$D$19="lognormal",EXP(LN(A55)+$G$19),AND($D$19<>"Normal",$D$19<>"Lognormal"),"") -> 9 | B56: =_xlfn.IFS($D$19="normal",_xlfn.NORM.DIST(A56,$D$16,$B$28,FALSE),$D$19="lognormal",_xlfn.LOGNORM.DIST(A56,LN($D$16),$B$28,FALSE),AND($D$19<>"Normal",$D$19<>"Lognormal"),"") -> 2.1458634 | H56: =_xlfn.IFS($K$19="normal",H55+$N$19,$K$19="lognormal",EXP(LN(H55)+$N$19),AND($K$19<>"Normal",$K$19<>"Lognormal"),"") -> 89 | I56: =_xlfn.IFS($K$19="normal",_xlfn.NORM.DIST(H56,$K$16,$I$28,FALSE),$K$19="lognormal",_xlfn.LOGNORM.DIST(H56,LN($K$16),$I$28,FALSE),AND($K$19<>"Normal",$K$19<>"Lognormal"),"") -> 0.2598131 | O56: =_xlfn.IFS($R$19="normal",O55+$U$19,$R$19="lognormal",EXP(LN(O55)+$U$19),AND($R$19<>"Normal",$R$19<>"Lognormal"),"") -> 5 | P56: =_xlfn.IFS($R$19="normal",_xlfn.NORM.DIST(O56,$R$16,$P$28,FALSE),$R$19="lognormal",_xlfn.LOGNORM.DIST(O56,LN($R$16),$P$28,FALSE),AND($R$19<>"Normal",$R$19<>"Lognormal"),"") -> 3.6211444
A57: =_xlfn.IFS($D$19="normal",A56+$G$19,$D$19="lognormal",EXP(LN(A56)+$G$19),AND($D$19<>"Normal",$D$19<>"Lognormal"),"") -> 9 | B57: =_xlfn.IFS($D$19="normal",_xlfn.NORM.DIST(A57,$D$16,$B$28,FALSE),$D$19="lognormal",_xlfn.LOGNORM.DIST(A57,LN($D$16),$B$28,FALSE),AND($D$19<>"Normal",$D$19<>"Lognormal"),"") -> 2.3129921 | H57: =_xlfn.IFS($K$19="normal",H56+$N$19,$K$19="lognormal",EXP(LN(H56)+$N$19),AND($K$19<>"Normal",$K$19<>"Lognormal"),"") -> 89 | I57: =_xlfn.IFS($K$19="normal",_xlfn.NORM.DIST(H57,$K$16,$I$28,FALSE),$K$19="lognormal",_xlfn.LOGNORM.DIST(H57,LN($K$16),$I$28,FALSE),AND($K$19<>"Normal",$K$19<>"Lognormal"),"") -> 0.2800484 | O57: =_xlfn.IFS($R$19="normal",O56+$U$19,$R$19="lognormal",EXP(LN(O56)+$U$19),AND($R$19<>"Normal",$R$19<>"Lognormal"),"") -> 5 | P57: =_xlfn.IFS($R$19="normal",_xlfn.NORM.DIST(O57,$R$16,$P$28,FALSE),$R$19="lognormal",_xlfn.LOGNORM.DIST(O57,LN($R$16),$P$28,FALSE),AND($R$19<>"Normal",$R$19<>"Lognormal"),"") -> 3.9031742
A58: =_xlfn.IFS($D$19="normal",A57+$G$19,$D$19="lognormal",EXP(LN(A57)+$G$19),AND($D$19<>"Normal",$D$19<>"Lognormal"),"") -> 9 | B58: =_xlfn.IFS($D$19="normal",_xlfn.NORM.DIST(A58,$D$16,$B$28,FALSE),$D$19="lognormal",_xlfn.LOGNORM.DIST(A58,LN($D$16),$B$28,FALSE),AND($D$19<>"Normal",$D$19<>"Lognormal"),"") -> 2.4683304 | H58: =_xlfn.IFS($K$19="normal",H57+$N$19,$K$19="lognormal",EXP(LN(H57)+$N$19),AND($K$19<>"Normal",$K$19<>"Lognormal"),"") -> 90 | I58: =_xlfn.IFS($K$19="normal",_xlfn.NORM.DIST(H58,$K$16,$I$28,FALSE),$K$19="lognormal",_xlfn.LOGNORM.DIST(H58,LN($K$16),$I$28,FALSE),AND($K$19<>"Normal",$K$19<>"Lognormal"),"") -> 0.2988561 | O58: =_xlfn.IFS($R$19="normal",O57+$U$19,$R$19="lognormal",EXP(LN(O57)+$U$19),AND($R$19<>"Normal",$R$19<>"Lognormal"),"") -> 5 | P58: =_xlfn.IFS($R$19="normal",_xlfn.NORM.DIST(O58,$R$16,$P$28,FALSE),$R$19="lognormal",_xlfn.LOGNORM.DIST(O58,LN($R$16),$P$28,FALSE),AND($R$19<>"Normal",$R$19<>"Lognormal"),"") -> 4.1653075
A59: =_xlfn.IFS($D$19="normal",A58+$G$19,$D$19="lognormal",EXP(LN(A58)+$G$19),AND($D$19<>"Normal",$D$19<>"Lognormal"),"") -> 9 | B59: =_xlfn.IFS($D$19="normal",_xlfn.NORM.DIST(A59,$D$16,$B$28,FALSE),$D$19="lognormal",_xlfn.LOGNORM.DIST(A59,LN($D$16),$B$28,FALSE),AND($D$19<>"Normal",$D$19<>"Lognormal"),"") -> 2.6078913 | H59: =_xlfn.IFS($K$19="normal",H58+$N$19,$K$19="lognormal",EXP(LN(H58)+$N$19),AND($K$19<>"Normal",$K$19<>"Lognormal"),"") -> 90 | I59: =_xlfn.IFS($K$19="normal",_xlfn.NORM.DIST(H59,$K$16,$I$28,FALSE),$K$19="lognormal",_xlfn.LOGNORM.DIST(H59,LN($K$16),$I$28,FALSE),AND($K$19<>"Normal",$K$19<>"Lognormal"),"") -> 0.3157537 | O59: =_xlfn.IFS($R$19="normal",O58+$U$19,$R$19="lognormal",EXP(LN(O58)+$U$19),AND($R$19<>"Normal",$R$19<>"Lognormal"),"") -> 5 | P59: =_xlfn.IFS($R$19="normal",_xlfn.NORM.DIST(O59,$R$16,$P$28,FALSE),$R$19="lognormal",_xlfn.LOGNORM.DIST(O59,LN($R$16),$P$28,FALSE),AND($R$19<>"Normal",$R$19<>"Lognormal"),"") -> 4.4008166
A60: =_xlfn.IFS($D$19="normal",A59+$G$19,$D$19="lognormal",EXP(LN(A59)+$G$19),AND($D$19<>"Normal",$D$19<>"Lognormal"),"") -> 9 | B60: =_xlfn.IFS($D$19="normal",_xlfn.NORM.DIST(A60,$D$16,$B$28,FALSE),$D$19="lognormal",_xlfn.LOGNORM.DIST(A60,LN($D$16),$B$28,FALSE),AND($D$19<>"Normal",$D$19<>"Lognormal"),"") -> 2.7279270 | H60: =_xlfn.IFS($K$19="normal",H59+$N$19,$K$19="lognormal",EXP(LN(H59)+$N$19),AND($K$19<>"Normal",$K$19<>"Lognormal"),"") -> 90 | I60: =_xlfn.IFS($K$19="normal",_xlfn.NORM.DIST(H60,$K$16,$I$28,FALSE),$K$19="lognormal",_xlfn.LOGNORM.DIST(H60,LN($K$16),$I$28,FALSE),AND($K$19<>"Normal",$K$19<>"Lognormal"),"") -> 0.3302871 | O60: =_xlfn.IFS($R$19="normal",O59+$U$19,$R$19="lognormal",EXP(LN(O59)+$U$19),AND($R$19<>"Normal",$R$19<>"Lognormal"),"") -> 5 | P60: =_xlfn.IFS($R$19="normal",_xlfn.NORM.DIST(O60,$R$16,$P$28,FALSE),$R$19="lognormal",_xlfn.LOGNORM.DIST(O60,LN($R$16),$P$28,FALSE),AND($R$19<>"Normal",$R$19<>"Lognormal"),"") -> 4.6033768
A61: =_xlfn.IFS($D$19="normal",A60+$G$19,$D$19="lognormal",EXP(LN(A60)+$G$19),AND($D$19<>"Normal",$D$19<>"Lognormal"),"") -> 9 | B61: =_xlfn.IFS($D$19="normal",_xlfn.NORM.DIST(A61,$D$16,$B$28,FALSE),$D$19="lognormal",_xlfn.LOGNORM.DIST(A61,LN($D$16),$B$28,FALSE),AND($D$19<>"Normal",$D$19<>"Lognormal"),"") -> 2.8250949 | H61: =_xlfn.IFS($K$19="normal",H60+$N$19,$K$19="lognormal",EXP(LN(H60)+$N$19),AND($K$19<>"Normal",$K$19<>"Lognormal"),"") -> 90 | I61: =_xlfn.IFS($K$19="normal",_xlfn.NORM.DIST(H61,$K$16,$I$28,FALSE),$K$19="lognormal",_xlfn.LOGNORM.DIST(H61,LN($K$16),$I$28,FALSE),AND($K$19<>"Normal",$K$19<>"Lognormal"),"") -> 0.3420519 | O61: =_xlfn.IFS($R$19="normal",O60+$U$19,$R$19="lognormal",EXP(LN(O60)+$U$19),AND($R$19<>"Normal",$R$19<>"Lognormal"),"") -> 5 | P61: =_xlfn.IFS($R$19="normal",_xlfn.NORM.DIST(O61,$R$16,$P$28,FALSE),$R$19="lognormal",_xlfn.LOGNORM.DIST(O61,LN($R$16),$P$28,FALSE),AND($R$19<>"Normal",$R$19<>"Lognormal"),"") -> 4.7673477
A62: =_xlfn.IFS($D$19="normal",A61+$G$19,$D$19="lognormal",EXP(LN(A61)+$G$19),AND($D$19<>"Normal",$D$19<>"Lognormal"),"") -> 9 | B62: =_xlfn.IFS($D$19="normal",_xlfn.NORM.DIST(A62,$D$16,$B$28,FALSE),$D$19="lognormal",_xlfn.LOGNORM.DIST(A62,LN($D$16),$B$28,FALSE),AND($D$19<>"Normal",$D$19<>"Lognormal"),"") -> 2.8966125 | H62: =_xlfn.IFS($K$19="normal",H61+$N$19,$K$19="lognormal",EXP(LN(H61)+$N$19),AND($K$19<>"Normal",$K$19<>"Lognormal"),"") -> 90 | I62: =_xlfn.IFS($K$19="normal",_xlfn.NORM.DIST(H62,$K$16,$I$28,FALSE),$K$19="lognormal",_xlfn.LOGNORM.DIST(H62,LN($K$16),$I$28,FALSE),AND($K$19<>"Normal",$K$19<>"Lognormal"),"") -> 0.3507109 | O62: =_xlfn.IFS($R$19="normal",O61+$U$19,$R$19="lognormal",EXP(LN(O61)+$U$19),AND($R$19<>"Normal",$R$19<>"Lognormal"),"") -> 5 | P62: =_xlfn.IFS($R$19="normal",_xlfn.NORM.DIST(O62,$R$16,$P$28,FALSE),$R$19="lognormal",_xlfn.LOGNORM.DIST(O62,LN($R$16),$P$28,FALSE),AND($R$19<>"Normal",$R$19<>"Lognormal"),"") -> 4.8880337
A63: =_xlfn.IFS($D$19="normal",A62+$G$19,$D$19="lognormal",EXP(LN(A62)+$G$19),AND($D$19<>"Normal",$D$19<>"Lognormal"),"") -> 9 | B63: =_xlfn.IFS($D$19="normal",_xlfn.NORM.DIST(A63,$D$16,$B$28,FALSE),$D$19="lognormal",_xlfn.LOGNORM.DIST(A63,LN($D$16),$B$28,FALSE),AND($D$19<>"Normal",$D$19<>"Lognormal"),"") -> 2.9403892 | H63: =_xlfn.IFS($K$19="normal",H62+$N$19,$K$19="lognormal",EXP(LN(H62)+$N$19),AND($K$19<>"Normal",$K$19<>"Lognormal"),"") -> 90 | I63: =_xlfn.IFS($K$19="normal",_xlfn.NORM.DIST(H63,$K$16,$I$28,FALSE),$K$19="lognormal",_xlfn.LOGNORM.DIST(H63,LN($K$16),$I$28,FALSE),AND($K$19<>"Normal",$K$19<>"Lognormal"),"") -> 0.3560113 | O63: =_xlfn.IFS($R$19="normal",O62+$U$19,$R$19="lognormal",EXP(LN(O62)+$U$19),AND($R$19<>"Normal",$R$19<>"Lognormal"),"") -> 5 | P63: =_xlfn.IFS($R$19="normal",_xlfn.NORM.DIST(O63,$R$16,$P$28,FALSE),$R$19="lognormal",_xlfn.LOGNORM.DIST(O63,LN($R$16),$P$28,FALSE),AND($R$19<>"Normal",$R$19<>"Lognormal"),"") -> 4.9619068
A64: =_xlfn.IFS($D$19="normal",A63+$G$19,$D$19="lognormal",EXP(LN(A63)+$G$19),AND($D$19<>"Normal",$D$19<>"Lognormal"),"") -> 9 | B64: =_xlfn.IFS($D$19="normal",_xlfn.NORM.DIST(A64,$D$16,$B$28,FALSE),$D$19="lognormal",_xlfn.LOGNORM.DIST(A64,LN($D$16),$B$28,FALSE),AND($D$19<>"Normal",$D$19<>"Lognormal"),"") -> 2.9551280 | H64: =_xlfn.IFS($K$19="normal",H63+$N$19,$K$19="lognormal",EXP(LN(H63)+$N$19),AND($K$19<>"Normal",$K$19<>"Lognormal"),"") -> 90 | I64: =_xlfn.IFS($K$19="normal",_xlfn.NORM.DIST(H64,$K$16,$I$28,FALSE),$K$19="lognormal",_xlfn.LOGNORM.DIST(H64,LN($K$16),$I$28,FALSE),AND($K$19<>"Normal",$K$19<>"Lognormal"),"") -> 0.3577958 | O64: =_xlfn.IFS($R$19="normal",O63+$U$19,$R$19="lognormal",EXP(LN(O63)+$U$19),AND($R$19<>"Normal",$R$19<>"Lognormal"),"") -> 5 | P64: =_xlfn.IFS($R$19="normal",_xlfn.NORM.DIST(O64,$R$16,$P$28,FALSE),$R$19="lognormal",_xlfn.LOGNORM.DIST(O64,LN($R$16),$P$28,FALSE),AND($R$19<>"Normal",$R$19<>"Lognormal"),"") -> 4.9867785
A65: =_xlfn.IFS($D$19="normal",A64+$G$19,$D$19="lognormal",EXP(LN(A64)+$G$19),AND($D$19<>"Normal",$D$19<>"Lognormal"),"") -> 9 | B65: =_xlfn.IFS($D$19="normal",_xlfn.NORM.DIST(A65,$D$16,$B$28,FALSE),$D$19="lognormal",_xlfn.LOGNORM.DIST(A65,LN($D$16),$B$28,FALSE),AND($D$19<>"Normal",$D$19<>"Lognormal"),"") -> 2.9403892 | H65: =_xlfn.IFS($K$19="normal",H64+$N$19,$K$19="lognormal",EXP(LN(H64)+$N$19),AND($K$19<>"Normal",$K$19<>"Lognormal"),"") -> 90 | I65: =_xlfn.IFS($K$19="normal",_xlfn.NORM.DIST(H65,$K$16,$I$28,FALSE),$K$19="lognormal",_xlfn.LOGNORM.DIST(H65,LN($K$16),$I$28,FALSE),AND($K$19<>"Normal",$K$19<>"Lognormal"),"") -> 0.3560113 | O65: =_xlfn.IFS($R$19="normal",O64+$U$19,$R$19="lognormal",EXP(LN(O64)+$U$19),AND($R$19<>"Normal",$R$19<>"Lognormal"),"") -> 5 | P65: =_xlfn.IFS($R$19="normal",_xlfn.NORM.DIST(O65,$R$16,$P$28,FALSE),$R$19="lognormal",_xlfn.LOGNORM.DIST(O65,LN($R$16),$P$28,FALSE),AND($R$19<>"Normal",$R$19<>"Lognormal"),"") -> 4.9619068
A66: =_xlfn.IFS($D$19="normal",A65+$G$19,$D$19="lognormal",EXP(LN(A65)+$G$19),AND($D$19<>"Normal",$D$19<>"Lognormal"),"") -> 9 | B66: =_xlfn.IFS($D$19="normal",_xlfn.NORM.DIST(A66,$D$16,$B$28,FALSE),$D$19="lognormal",_xlfn.LOGNORM.DIST(A66,LN($D$16),$B$28,FALSE),AND($D$19<>"Normal",$D$19<>"Lognormal"),"") -> 2.8966125 | H66: =_xlfn.IFS($K$19="normal",H65+$N$19,$K$19="lognormal",EXP(LN(H65)+$N$19),AND($K$19<>"Normal",$K$19<>"Lognormal"),"") -> 90 | I66: =_xlfn.IFS($K$19="normal",_xlfn.NORM.DIST(H66,$K$16,$I$28,FALSE),$K$19="lognormal",_xlfn.LOGNORM.DIST(H66,LN($K$16),$I$28,FALSE),AND($K$19<>"Normal",$K$19<>"Lognormal"),"") -> 0.3507109 | O66: =_xlfn.IFS($R$19="normal",O65+$U$19,$R$19="lognormal",EXP(LN(O65)+$U$19),AND($R$19<>"Normal",$R$19<>"Lognormal"),"") -> 5 | P66: =_xlfn.IFS($R$19="normal",_xlfn.NORM.DIST(O66,$R$16,$P$28,FALSE),$R$19="lognormal",_xlfn.LOGNORM.DIST(O66,LN($R$16),$P$28,FALSE),AND($R$19<>"Normal",$R$19<>"Lognormal"),"") -> 4.8880337
A67: =_xlfn.IFS($D$19="normal",A66+$G$19,$D$19="lognormal",EXP(LN(A66)+$G$19),AND($D$19<>"Normal",$D$19<>"Lognormal"),"") -> 9 | B67: =_xlfn.IFS($D$19="normal",_xlfn.NORM.DIST(A67,$D$16,$B$28,FALSE),$D$19="lognormal",_xlfn.LOGNORM.DIST(A67,LN($D$16),$B$28,FALSE),AND($D$19<>"Normal",$D$19<>"Lognormal"),"") -> 2.8250949 | H67: =_xlfn.IFS($K$19="normal",H66+$N$19,$K$19="lognormal",EXP(LN(H66)+$N$19),AND($K$19<>"Normal",$K$19<>"Lognormal"),"") -> 91 | I67: =_xlfn.IFS($K$19="normal",_xlfn.NORM.DIST(H67,$K$16,$I$28,FALSE),$K$19="lognormal",_xlfn.LOGNORM.DIST(H67,LN($K$16),$I$28,FALSE),AND($K$19<>"Normal",$K$19<>"Lognormal"),"") -> 0.3420519 | O67: =_xlfn.IFS($R$19="normal",O66+$U$19,$R$19="lognormal",EXP(LN(O66)+$U$19),AND($R$19<>"Normal",$R$19<>"Lognormal"),"") -> 5 | P67: =_xlfn.IFS($R$19="normal",_xlfn.NORM.DIST(O67,$R$16,$P$28,FALSE),$R$19="lognormal",_xlfn.LOGNORM.DIST(O67,LN($R$16),$P$28,FALSE),AND($R$19<>"Normal",$R$19<>"Lognormal"),"") -> 4.7673477
A68: =_xlfn.IFS($D$19="normal",A67+$G$19,$D$19="lognormal",EXP(LN(A67)+$G$19),AND($D$19<>"Normal",$D$19<>"Lognormal"),"") -> 9 | B68: =_xlfn.IFS($D$19="normal",_xlfn.NORM.DIST(A68,$D$16,$B$28,FALSE),$D$19="lognormal",_xlfn.LOGNORM.DIST(A68,LN($D$16),$B$28,FALSE),AND($D$19<>"Normal",$D$19<>"Lognormal"),"") -> 2.7279270 | H68: =_xlfn.IFS($K$19="normal",H67+$N$19,$K$19="lognormal",EXP(LN(H67)+$N$19),AND($K$19<>"Normal",$K$19<>"Lognormal"),"") -> 91 | I68: =_xlfn.IFS($K$19="normal",_xlfn.NORM.DIST(H68,$K$16,$I$28,FALSE),$K$19="lognormal",_xlfn.LOGNORM.DIST(H68,LN($K$16),$I$28,FALSE),AND($K$19<>"Normal",$K$19<>"Lognormal"),"") -> 0.3302871 | O68: =_xlfn.IFS($R$19="normal",O67+$U$19,$R$19="lognormal",EXP(LN(O67)+$U$19),AND($R$19<>"Normal",$R$19<>"Lognormal"),"") -> 5 | P68: =_xlfn.IFS($R$19="normal",_xlfn.NORM.DIST(O68,$R$16,$P$28,FALSE),$R$19="lognormal",_xlfn.LOGNORM.DIST(O68,LN($R$16),$P$28,FALSE),AND($R$19<>"Normal",$R$19<>"Lognormal"),"") -> 4.6033768
A69: =_xlfn.IFS($D$19="normal",A68+$G$19,$D$19="lognormal",EXP(LN(A68)+$G$19),AND($D$19<>"Normal",$D$19<>"Lognormal"),"") -> 9 | B69: =_xlfn.IFS($D$19="normal",_xlfn.NORM.DIST(A69,$D$16,$B$28,FALSE),$D$19="lognormal",_xlfn.LOGNORM.DIST(A69,LN($D$16),$B$28,FALSE),AND($D$19<>"Normal",$D$19<>"Lognormal"),"") -> 2.6078913 | H69: =_xlfn.IFS($K$19="normal",H68+$N$19,$K$19="lognormal",EXP(LN(H68)+$N$19),AND($K$19<>"Normal",$K$19<>"Lognormal"),"") -> 91 | I69: =_xlfn.IFS($K$19="normal",_xlfn.NORM.DIST(H69,$K$16,$I$28,FALSE),$K$19="lognormal",_xlfn.LOGNORM.DIST(H69,LN($K$16),$I$28,FALSE),AND($K$19<>"Normal",$K$19<>"Lognormal"),"") -> 0.3157537 | O69: =_xlfn.IFS($R$19="normal",O68+$U$19,$R$19="lognormal",EXP(LN(O68)+$U$19),AND($R$19<>"Normal",$R$19<>"Lognormal"),"") -> 5 | P69: =_xlfn.IFS($R$19="normal",_xlfn.NORM.DIST(O69,$R$16,$P$28,FALSE),$R$19="lognormal",_xlfn.LOGNORM.DIST(O69,LN($R$16),$P$28,FALSE),AND($R$19<>"Normal",$R$19<>"Lognormal"),"") -> 4.4008166
A70: =_xlfn.IFS($D$19="normal",A69+$G$19,$D$19="lognormal",EXP(LN(A69)+$G$19),AND($D$19<>"Normal",$D$19<>"Lognormal"),"") -> 9 | B70: =_xlfn.IFS($D$19="normal",_xlfn.NORM.DIST(A70,$D$16,$B$28,FALSE),$D$19="lognormal",_xlfn.LOGNORM.DIST(A70,LN($D$16),$B$28,FALSE),AND($D$19<>"Normal",$D$19<>"Lognormal"),"") -> 2.4683304 | H70: =_xlfn.IFS($K$19="normal",H69+$N$19,$K$19="lognormal",EXP(LN(H69)+$N$19),AND($K$19<>"Normal",$K$19<>"Lognormal"),"") -> 91 | I70: =_xlfn.IFS($K$19="normal",_xlfn.NORM.DIST(H70,$K$16,$I$28,FALSE),$K$19="lognormal",_xlfn.LOGNORM.DIST(H70,LN($K$16),$I$28,FALSE),AND($K$19<>"Normal",$K$19<>"Lognormal"),"") -> 0.2988561 | O70: =_xlfn.IFS($R$19="normal",O69+$U$19,$R$19="lognormal",EXP(LN(O69)+$U$19),AND($R$19<>"Normal",$R$19<>"Lognormal"),"") -> 5 | P70: =_xlfn.IFS($R$19="normal",_xlfn.NORM.DIST(O70,$R$16,$P$28,FALSE),$R$19="lognormal",_xlfn.LOGNORM.DIST(O70,LN($R$16),$P$28,FALSE),AND($R$19<>"Normal",$R$19<>"Lognormal"),"") -> 4.1653075
A71: =_xlfn.IFS($D$19="normal",A70+$G$19,$D$19="lognormal",EXP(LN(A70)+$G$19),AND($D$19<>"Normal",$D$19<>"Lognormal"),"") -> 9 | B71: =_xlfn.IFS($D$19="normal",_xlfn.NORM.DIST(A71,$D$16,$B$28,FALSE),$D$19="lognormal",_xlfn.LOGNORM.DIST(A71,LN($D$16),$B$28,FALSE),AND($D$19<>"Normal",$D$19<>"Lognormal"),"") -> 2.3129921 | H71: =_xlfn.IFS($K$19="normal",H70+$N$19,$K$19="lognormal",EXP(LN(H70)+$N$19),AND($K$19<>"Normal",$K$19<>"Lognormal"),"") -> 91 | I71: =_xlfn.IFS($K$19="normal",_xlfn.NORM.DIST(H71,$K$16,$I$28,FALSE),$K$19="lognormal",_xlfn.LOGNORM.DIST(H71,LN($K$16),$I$28,FALSE),AND($K$19<>"Normal",$K$19<>"Lognormal"),"") -> 0.2800484 | O71: =_xlfn.IFS($R$19="normal",O70+$U$19,$R$19="lognormal",EXP(LN(O70)+$U$19),AND($R$19<>"Normal",$R$19<>"Lognormal"),"") -> 5 | P71: =_xlfn.IFS($R$19="normal",_xlfn.NORM.DIST(O71,$R$16,$P$28,FALSE),$R$19="lognormal",_xlfn.LOGNORM.DIST(O71,LN($R$16),$P$28,FALSE),AND($R$19<>"Normal",$R$19<>"Lognormal"),"") -> 3.9031742
A72: =_xlfn.IFS($D$19="normal",A71+$G$19,$D$19="lognormal",EXP(LN(A71)+$G$19),AND($D$19<>"Normal",$D$19<>"Lognormal"),"") -> 9 | B72: =_xlfn.IFS($D$19="normal",_xlfn.NORM.DIST(A72,$D$16,$B$28,FALSE),$D$19="lognormal",_xlfn.LOGNORM.DIST(A72,LN($D$16),$B$28,FALSE),AND($D$19<>"Normal",$D$19<>"Lognormal"),"") -> 2.1458634 | H72: =_xlfn.IFS($K$19="normal",H71+$N$19,$K$19="lognormal",EXP(LN(H71)+$N$19),AND($K$19<>"Normal",$K$19<>"Lognormal"),"") -> 91 | I72: =_xlfn.IFS($K$19="normal",_xlfn.NORM.DIST(H72,$K$16,$I$28,FALSE),$K$19="lognormal",_xlfn.LOGNORM.DIST(H72,LN($K$16),$I$28,FALSE),AND($K$19<>"Normal",$K$19<>"Lognormal"),"") -> 0.2598131 | O72: =_xlfn.IFS($R$19="normal",O71+$U$19,$R$19="lognormal",EXP(LN(O71)+$U$19),AND($R$19<>"Normal",$R$19<>"Lognormal"),"") -> 5 | P72: =_xlfn.IFS($R$19="normal",_xlfn.NORM.DIST(O72,$R$16,$P$28,FALSE),$R$19="lognormal",_xlfn.LOGNORM.DIST(O72,LN($R$16),$P$28,FALSE),AND($R$19<>"Normal",$R$19<>"Lognormal"),"") -> 3.6211444
A73: =_xlfn.IFS($D$19="normal",A72+$G$19,$D$19="lognormal",EXP(LN(A72)+$G$19),AND($D$19<>"Normal",$D$19<>"Lognormal"),"") -> 9 | B73: =_xlfn.IFS($D$19="normal",_xlfn.NORM.DIST(A73,$D$16,$B$28,FALSE),$D$19="lognormal",_xlfn.LOGNORM.DIST(A73,LN($D$16),$B$28,FALSE),AND($D$19<>"Normal",$D$19<>"Lognormal"),"") -> 1.9710019 | H73: =_xlfn.IFS($K$19="normal",H72+$N$19,$K$19="lognormal",EXP(LN(H72)+$N$19),AND($K$19<>"Normal",$K$19<>"Lognormal"),"") -> 91 | I73: =_xlfn.IFS($K$19="normal",_xlfn.NORM.DIST(H73,$K$16,$I$28,FALSE),$K$19="lognormal",_xlfn.LOGNORM.DIST(H73,LN($K$16),$I$28,FALSE),AND($K$19<>"Normal",$K$19<>"Lognormal"),"") -> 0.2386415 | O73: =_xlfn.IFS($R$19="normal",O72+$U$19,$R$19="lognormal",EXP(LN(O72)+$U$19),AND($R$19<>"Normal",$R$19<>"Lognormal"),"") -> 5 | P73: =_xlfn.IFS($R$19="normal",_xlfn.NORM.DIST(O73,$R$16,$P$28,FALSE),$R$19="lognormal",_xlfn.LOGNORM.DIST(O73,LN($R$16),$P$28,FALSE),AND($R$19<>"Normal",$R$19<>"Lognormal"),"") -> 3.3260656
A74: =_xlfn.IFS($D$19="normal",A73+$G$19,$D$19="lognormal",EXP(LN(A73)+$G$19),AND($D$19<>"Normal",$D$19<>"Lognormal"),"") -> 9 | B74: =_xlfn.IFS($D$19="normal",_xlfn.NORM.DIST(A74,$D$16,$B$28,FALSE),$D$19="lognormal",_xlfn.LOGNORM.DIST(A74,LN($D$16),$B$28,FALSE),AND($D$19<>"Normal",$D$19<>"Lognormal"),"") -> 1.7923757 | H74: =_xlfn.IFS($K$19="normal",H73+$N$19,$K$19="lognormal",EXP(LN(H73)+$N$19),AND($K$19<>"Normal",$K$19<>"Lognormal"),"") -> 91 | I74: =_xlfn.IFS($K$19="normal",_xlfn.NORM.DIST(H74,$K$16,$I$28,FALSE),$K$19="lognormal",_xlfn.LOGNORM.DIST(H74,LN($K$16),$I$28,FALSE),AND($K$19<>"Normal",$K$19<>"Lognormal"),"") -> 0.2170141 | O74: =_xlfn.IFS($R$19="normal",O73+$U$19,$R$19="lognormal",EXP(LN(O73)+$U$19),AND($R$19<>"Normal",$R$19<>"Lognormal"),"") -> 5 | P74: =_xlfn.IFS($R$19="normal",_xlfn.NORM.DIST(O74,$R$16,$P$28,FALSE),$R$19="lognormal",_xlfn.LOGNORM.DIST(O74,LN($R$16),$P$28,FALSE),AND($R$19<>"Normal",$R$19<>"Lognormal"),"") -> 3.0246341
A75: =_xlfn.IFS($D$19="normal",A74+$G$19,$D$19="lognormal",EXP(LN(A74)+$G$19),AND($D$19<>"Normal",$D$19<>"Lognormal"),"") -> 9 | B75: =_xlfn.IFS($D$19="normal",_xlfn.NORM.DIST(A75,$D$16,$B$28,FALSE),$D$19="lognormal",_xlfn.LOGNORM.DIST(A75,LN($D$16),$B$28,FALSE),AND($D$19<>"Normal",$D$19<>"Lognormal"),"") -> 1.6137198 | H75: =_xlfn.IFS($K$19="normal",H74+$N$19,$K$19="lognormal",EXP(LN(H74)+$N$19),AND($K$19<>"Normal",$K$19<>"Lognormal"),"") -> 91 | I75: =_xlfn.IFS($K$19="normal",_xlfn.NORM.DIST(H75,$K$16,$I$28,FALSE),$K$19="lognormal",_xlfn.LOGNORM.DIST(H75,LN($K$16),$I$28,FALSE),AND($K$19<>"Normal",$K$19<>"Lognormal"),"") -> 0.1953831 | O75: =_xlfn.IFS($R$19="normal",O74+$U$19,$R$19="lognormal",EXP(LN(O74)+$U$19),AND($R$19<>"Normal",$R$19<>"Lognormal"),"") -> 5 | P75: =_xlfn.IFS($R$19="normal",_xlfn.NORM.DIST(O75,$R$16,$P$28,FALSE),$R$19="lognormal",_xlfn.LOGNORM.DIST(O75,LN($R$16),$P$28,FALSE),AND($R$19<>"Normal",$R$19<>"Lognormal"),"") -> 2.7231522
A76: =_xlfn.IFS($D$19="normal",A75+$G$19,$D$19="lognormal",EXP(LN(A75)+$G$19),AND($D$19<>"Normal",$D$19<>"Lognormal"),"") -> 9 | B76: =_xlfn.IFS($D$19="normal",_xlfn.NORM.DIST(A76,$D$16,$B$28,FALSE),$D$19="lognormal",_xlfn.LOGNORM.DIST(A76,LN($D$16),$B$28,FALSE),AND($D$19<>"Normal",$D$19<>"Lognormal"),"") -> 1.4384152 | H76: =_xlfn.IFS($K$19="normal",H75+$N$19,$K$19="lognormal",EXP(LN(H75)+$N$19),AND($K$19<>"Normal",$K$19<>"Lognormal"),"") -> 92 | I76: =_xlfn.IFS($K$19="normal",_xlfn.NORM.DIST(H76,$K$16,$I$28,FALSE),$K$19="lognormal",_xlfn.LOGNORM.DIST(H76,LN($K$16),$I$28,FALSE),AND($K$19<>"Normal",$K$19<>"Lognormal"),"") -> 0.1741579 | O76: =_xlfn.IFS($R$19="normal",O75+$U$19,$R$19="lognormal",EXP(LN(O75)+$U$19),AND($R$19<>"Normal",$R$19<>"Lognormal"),"") -> 5 | P76: =_xlfn.IFS($R$19="normal",_xlfn.NORM.DIST(O76,$R$16,$P$28,FALSE),$R$19="lognormal",_xlfn.LOGNORM.DIST(O76,LN($R$16),$P$28,FALSE),AND($R$19<>"Normal",$R$19<>"Lognormal"),"") -> 2.4273257
A77: =_xlfn.IFS($D$19="normal",A76+$G$19,$D$19="lognormal",EXP(LN(A76)+$G$19),AND($D$19<>"Normal",$D$19<>"Lognormal"),"") -> 9 | B77: =_xlfn.IFS($D$19="normal",_xlfn.NORM.DIST(A77,$D$16,$B$28,FALSE),$D$19="lognormal",_xlfn.LOGNORM.DIST(A77,LN($D$16),$B$28,FALSE),AND($D$19<>"Normal",$D$19<>"Lognormal"),"") -> 1.2693970 | H77: =_xlfn.IFS($K$19="normal",H76+$N$19,$K$19="lognormal",EXP(LN(H76)+$N$19),AND($K$19<>"Normal",$K$19<>"Lognormal"),"") -> 92 | I77: =_xlfn.IFS($K$19="normal",_xlfn.NORM.DIST(H77,$K$16,$I$28,FALSE),$K$19="lognormal",_xlfn.LOGNORM.DIST(H77,LN($K$16),$I$28,FALSE),AND($K$19<>"Normal",$K$19<>"Lognormal"),"") -> 0.1536938 | O77: =_xlfn.IFS($R$19="normal",O76+$U$19,$R$19="lognormal",EXP(LN(O76)+$U$19),AND($R$19<>"Normal",$R$19<>"Lognormal"),"") -> 5 | P77: =_xlfn.IFS($R$19="normal",_xlfn.NORM.DIST(O77,$R$16,$P$28,FALSE),$R$19="lognormal",_xlfn.LOGNORM.DIST(O77,LN($R$16),$P$28,FALSE),AND($R$19<>"Normal",$R$19<>"Lognormal"),"") -> 2.1421074
A78: =_xlfn.IFS($D$19="normal",A77+$G$19,$D$19="lognormal",EXP(LN(A77)+$G$19),AND($D$19<>"Normal",$D$19<>"Lognormal"),"") -> 9 | B78: =_xlfn.IFS($D$19="normal",_xlfn.NORM.DIST(A78,$D$16,$B$28,FALSE),$D$19="lognormal",_xlfn.LOGNORM.DIST(A78,LN($D$16),$B$28,FALSE),AND($D$19<>"Normal",$D$19<>"Lognormal"),"") -> 1.1090923 | H78: =_xlfn.IFS($K$19="normal",H77+$N$19,$K$19="lognormal",EXP(LN(H77)+$N$19),AND($K$19<>"Normal",$K$19<>"Lognormal"),"") -> 92 | I78: =_xlfn.IFS($K$19="normal",_xlfn.NORM.DIST(H78,$K$16,$I$28,FALSE),$K$19="lognormal",_xlfn.LOGNORM.DIST(H78,LN($K$16),$I$28,FALSE),AND($K$19<>"Normal",$K$19<>"Lognormal"),"") -> 0.1342847 | O78: =_xlfn.IFS($R$19="normal",O77+$U$19,$R$19="lognormal",EXP(LN(O77)+$U$19),AND($R$19<>"Normal",$R$19<>"Lognormal"),"") -> 5 | P78: =_xlfn.IFS($R$19="normal",_xlfn.NORM.DIST(O78,$R$16,$P$28,FALSE),$R$19="lognormal",_xlfn.LOGNORM.DIST(O78,LN($R$16),$P$28,FALSE),AND($R$19<>"Normal",$R$19<>"Lognormal"),"") -> 1.8715933
A79: =_xlfn.IFS($D$19="normal",A78+$G$19,$D$19="lognormal",EXP(LN(A78)+$G$19),AND($D$19<>"Normal",$D$19<>"Lognormal"),"") -> 9 | B79: =_xlfn.IFS($D$19="normal",_xlfn.NORM.DIST(A79,$D$16,$B$28,FALSE),$D$19="lognormal",_xlfn.LOGNORM.DIST(A79,LN($D$16),$B$28,FALSE),AND($D$19<>"Normal",$D$19<>"Lognormal"),"") -> 0.9593896 | H79: =_xlfn.IFS($K$19="normal",H78+$N$19,$K$19="lognormal",EXP(LN(H78)+$N$19),AND($K$19<>"Normal",$K$19<>"Lognormal"),"") -> 92 | I79: =_xlfn.IFS($K$19="normal",_xlfn.NORM.DIST(H79,$K$16,$I$28,FALSE),$K$19="lognormal",_xlfn.LOGNORM.DIST(H79,LN($K$16),$I$28,FALSE),AND($K$19<>"Normal",$K$19<>"Lognormal"),"") -> 0.1161593 | O79: =_xlfn.IFS($R$19="normal",O78+$U$19,$R$19="lognormal",EXP(LN(O78)+$U$19),AND($R$19<>"Normal",$R$19<>"Lognormal"),"") -> 5 | P79: =_xlfn.IFS($R$19="normal",_xlfn.NORM.DIST(O79,$R$16,$P$28,FALSE),$R$19="lognormal",_xlfn.LOGNORM.DIST(O79,LN($R$16),$P$28,FALSE),AND($R$19<>"Normal",$R$19<>"Lognormal"),"") -> 1.6189699
A80: =_xlfn.IFS($D$19="normal",A79+$G$19,$D$19="lognormal",EXP(LN(A79)+$G$19),AND($D$19<>"Normal",$D$19<>"Lognormal"),"") -> 9 | B80: =_xlfn.IFS($D$19="normal",_xlfn.NORM.DIST(A80,$D$16,$B$28,FALSE),$D$19="lognormal",_xlfn.LOGNORM.DIST(A80,LN($D$16),$B$28,FALSE),AND($D$19<>"Normal",$D$19<>"Lognormal"),"") -> 0.8216358 | H80: =_xlfn.IFS($K$19="normal",H79+$N$19,$K$19="lognormal",EXP(LN(H79)+$N$19),AND($K$19<>"Normal",$K$19<>"Lognormal"),"") -> 92 | I80: =_xlfn.IFS($K$19="normal",_xlfn.NORM.DIST(H80,$K$16,$I$28,FALSE),$K$19="lognormal",_xlfn.LOGNORM.DIST(H80,LN($K$16),$I$28,FALSE),AND($K$19<>"Normal",$K$19<>"Lognormal"),"") -> 0.0994806 | O80: =_xlfn.IFS($R$19="normal",O79+$U$19,$R$19="lognormal",EXP(LN(O79)+$U$19),AND($R$19<>"Normal",$R$19<>"Lognormal"),"") -> 5 | P80: =_xlfn.IFS($R$19="normal",_xlfn.NORM.DIST(O80,$R$16,$P$28,FALSE),$R$19="lognormal",_xlfn.LOGNORM.DIST(O80,LN($R$16),$P$28,FALSE),AND($R$19<>"Normal",$R$19<>"Lognormal"),"") -> 1.3865104
A81: =_xlfn.IFS($D$19="normal",A80+$G$19,$D$19="lognormal",EXP(LN(A80)+$G$19),AND($D$19<>"Normal",$D$19<>"Lognormal"),"") -> 9 | B81: =_xlfn.IFS($D$19="normal",_xlfn.NORM.DIST(A81,$D$16,$B$28,FALSE),$D$19="lognormal",_xlfn.LOGNORM.DIST(A81,LN($D$16),$B$28,FALSE),AND($D$19<>"Normal",$D$19<>"Lognormal"),"") -> 0.6966598 | H81: =_xlfn.IFS($K$19="normal",H80+$N$19,$K$19="lognormal",EXP(LN(H80)+$N$19),AND($K$19<>"Normal",$K$19<>"Lognormal"),"") -> 92 | I81: =_xlfn.IFS($K$19="normal",_xlfn.NORM.DIST(H81,$K$16,$I$28,FALSE),$K$19="lognormal",_xlfn.LOGNORM.DIST(H81,LN($K$16),$I$28,FALSE),AND($K$19<>"Normal",$K$19<>"Lognormal"),"") -> 0.0843489 | O81: =_xlfn.IFS($R$19="normal",O80+$U$19,$R$19="lognormal",EXP(LN(O80)+$U$19),AND($R$19<>"Normal",$R$19<>"Lognormal"),"") -> 5 | P81: =_xlfn.IFS($R$19="normal",_xlfn.NORM.DIST(O81,$R$16,$P$28,FALSE),$R$19="lognormal",_xlfn.LOGNORM.DIST(O81,LN($R$16),$P$28,FALSE),AND($R$19<>"Normal",$R$19<>"Lognormal"),"") -> 1.1756135
A82: =_xlfn.IFS($D$19="normal",A81+$G$19,$D$19="lognormal",EXP(LN(A81)+$G$19),AND($D$19<>"Normal",$D$19<>"Lognormal"),"") -> 9 | B82: =_xlfn.IFS($D$19="normal",_xlfn.NORM.DIST(A82,$D$16,$B$28,FALSE),$D$19="lognormal",_xlfn.LOGNORM.DIST(A82,LN($D$16),$B$28,FALSE),AND($D$19<>"Normal",$D$19<>"Lognormal"),"") -> 0.5848160 | H82: =_xlfn.IFS($K$19="normal",H81+$N$19,$K$19="lognormal",EXP(LN(H81)+$N$19),AND($K$19<>"Normal",$K$19<>"Lognormal"),"") -> 92 | I82: =_xlfn.IFS($K$19="normal",_xlfn.NORM.DIST(H82,$K$16,$I$28,FALSE),$K$19="lognormal",_xlfn.LOGNORM.DIST(H82,LN($K$16),$I$28,FALSE),AND($K$19<>"Normal",$K$19<>"Lognormal"),"") -> 0.0708073 | O82: =_xlfn.IFS($R$19="normal",O81+$U$19,$R$19="lognormal",EXP(LN(O81)+$U$19),AND($R$19<>"Normal",$R$19<>"Lognormal"),"") -> 5 | P82: =_xlfn.IFS($R$19="normal",_xlfn.NORM.DIST(O82,$R$16,$P$28,FALSE),$R$19="lognormal",_xlfn.LOGNORM.DIST(O82,LN($R$16),$P$28,FALSE),AND($R$19<>"Normal",$R$19<>"Lognormal"),"") -> 0.9868770
A83: =_xlfn.IFS($D$19="normal",A82+$G$19,$D$19="lognormal",EXP(LN(A82)+$G$19),AND($D$19<>"Normal",$D$19<>"Lognormal"),"") -> 9 | B83: =_xlfn.IFS($D$19="normal",_xlfn.NORM.DIST(A83,$D$16,$B$28,FALSE),$D$19="lognormal",_xlfn.LOGNORM.DIST(A83,LN($D$16),$B$28,FALSE),AND($D$19<>"Normal",$D$19<>"Lognormal"),"") -> 0.4860431 | H83: =_xlfn.IFS($K$19="normal",H82+$N$19,$K$19="lognormal",EXP(LN(H82)+$N$19),AND($K$19<>"Normal",$K$19<>"Lognormal"),"") -> 92 | I83: =_xlfn.IFS($K$19="normal",_xlfn.NORM.DIST(H83,$K$16,$I$28,FALSE),$K$19="lognormal",_xlfn.LOGNORM.DIST(H83,LN($K$16),$I$28,FALSE),AND($K$19<>"Normal",$K$19<>"Lognormal"),"") -> 0.0588483 | O83: =_xlfn.IFS($R$19="normal",O82+$U$19,$R$19="lognormal",EXP(LN(O82)+$U$19),AND($R$19<>"Normal",$R$19<>"Lognormal"),"") -> 5 | P83: =_xlfn.IFS($R$19="normal",_xlfn.NORM.DIST(O83,$R$16,$P$28,FALSE),$R$19="lognormal",_xlfn.LOGNORM.DIST(O83,LN($R$16),$P$28,FALSE),AND($R$19<>"Normal",$R$19<>"Lognormal"),"") -> 0.8201977
A84: =_xlfn.IFS($D$19="normal",A83+$G$19,$D$19="lognormal",EXP(LN(A83)+$G$19),AND($D$19<>"Normal",$D$19<>"Lognormal"),"") -> 9 | B84: =_xlfn.IFS($D$19="normal",_xlfn.NORM.DIST(A84,$D$16,$B$28,FALSE),$D$19="lognormal",_xlfn.LOGNORM.DIST(A84,LN($D$16),$B$28,FALSE),AND($D$19<>"Normal",$D$19<>"Lognormal"),"") -> 0.3999331 | H84: =_xlfn.IFS($K$19="normal",H83+$N$19,$K$19="lognormal",EXP(LN(H83)+$N$19),AND($K$19<>"Normal",$K$19<>"Lognormal"),"") -> 92 | I84: =_xlfn.IFS($K$19="normal",_xlfn.NORM.DIST(H84,$K$16,$I$28,FALSE),$K$19="lognormal",_xlfn.LOGNORM.DIST(H84,LN($K$16),$I$28,FALSE),AND($K$19<>"Normal",$K$19<>"Lognormal"),"") -> 0.0484224 | O84: =_xlfn.IFS($R$19="normal",O83+$U$19,$R$19="lognormal",EXP(LN(O83)+$U$19),AND($R$19<>"Normal",$R$19<>"Lognormal"),"") -> 5 | P84: =_xlfn.IFS($R$19="normal",_xlfn.NORM.DIST(O84,$R$16,$P$28,FALSE),$R$19="lognormal",_xlfn.LOGNORM.DIST(O84,LN($R$16),$P$28,FALSE),AND($R$19<>"Normal",$R$19<>"Lognormal"),"") -> 0.6748871
A85: =_xlfn.IFS($D$19="normal",A84+$G$19,$D$19="lognormal",EXP(LN(A84)+$G$19),AND($D$19<>"Normal",$D$19<>"Lognormal"),"") -> 9 | B85: =_xlfn.IFS($D$19="normal",_xlfn.NORM.DIST(A85,$D$16,$B$28,FALSE),$D$19="lognormal",_xlfn.LOGNORM.DIST(A85,LN($D$16),$B$28,FALSE),AND($D$19<>"Normal",$D$19<>"Lognormal"),"") -> 0.3258044 | H85: =_xlfn.IFS($K$19="normal",H84+$N$19,$K$19="lognormal",EXP(LN(H84)+$N$19),AND($K$19<>"Normal",$K$19<>"Lognormal"),"") -> 93 | I85: =_xlfn.IFS($K$19="normal",_xlfn.NORM.DIST(H85,$K$16,$I$28,FALSE),$K$19="lognormal",_xlfn.LOGNORM.DIST(H85,LN($K$16),$I$28,FALSE),AND($K$19<>"Normal",$K$19<>"Lognormal"),"") -> 0.0394472 | O85: =_xlfn.IFS($R$19="normal",O84+$U$19,$R$19="lognormal",EXP(LN(O84)+$U$19),AND($R$19<>"Normal",$R$19<>"Lognormal"),"") -> 5 | P85: =_xlfn.IFS($R$19="normal",_xlfn.NORM.DIST(O85,$R$16,$P$28,FALSE),$R$19="lognormal",_xlfn.LOGNORM.DIST(O85,LN($R$16),$P$28,FALSE),AND($R$19<>"Normal",$R$19<>"Lognormal"),"") -> 0.5497949
A86: =_xlfn.IFS($D$19="normal",A85+$G$19,$D$19="lognormal",EXP(LN(A85)+$G$19),AND($D$19<>"Normal",$D$19<>"Lognormal"),"") -> 9 | B86: =_xlfn.IFS($D$19="normal",_xlfn.NORM.DIST(A86,$D$16,$B$28,FALSE),$D$19="lognormal",_xlfn.LOGNORM.DIST(A86,LN($D$16),$B$28,FALSE),AND($D$19<>"Normal",$D$19<>"Lognormal"),"") -> 0.2627748 | H86: =_xlfn.IFS($K$19="normal",H85+$N$19,$K$19="lognormal",EXP(LN(H85)+$N$19),AND($K$19<>"Normal",$K$19<>"Lognormal"),"") -> 93 | I86: =_xlfn.IFS($K$19="normal",_xlfn.NORM.DIST(H86,$K$16,$I$28,FALSE),$K$19="lognormal",_xlfn.LOGNORM.DIST(H86,LN($K$16),$I$28,FALSE),AND($K$19<>"Normal",$K$19<>"Lognormal"),"") -> 0.0318158 | O86: =_xlfn.IFS($R$19="normal",O85+$U$19,$R$19="lognormal",EXP(LN(O85)+$U$19),AND($R$19<>"Normal",$R$19<>"Lognormal"),"") -> 5 | P86: =_xlfn.IFS($R$19="normal",_xlfn.NORM.DIST(O86,$R$16,$P$28,FALSE),$R$19="lognormal",_xlfn.LOGNORM.DIST(O86,LN($R$16),$P$28,FALSE),AND($R$19<>"Normal",$R$19<>"Lognormal"),"") -> 0.4434324
A87: =_xlfn.IFS($D$19="normal",A86+$G$19,$D$19="lognormal",EXP(LN(A86)+$G$19),AND($D$19<>"Normal",$D$19<>"Lognormal"),"") -> 9 | B87: =_xlfn.IFS($D$19="normal",_xlfn.NORM.DIST(A87,$D$16,$B$28,FALSE),$D$19="lognormal",_xlfn.LOGNORM.DIST(A87,LN($D$16),$B$28,FALSE),AND($D$19<>"Normal",$D$19<>"Lognormal"),"") -> 0.2098299 | H87: =_xlfn.IFS($K$19="normal",H86+$N$19,$K$19="lognormal",EXP(LN(H86)+$N$19),AND($K$19<>"Normal",$K$19<>"Lognormal"),"") -> 93 | I87: =_xlfn.IFS($K$19="normal",_xlfn.NORM.DIST(H87,$K$16,$I$28,FALSE),$K$19="lognormal",_xlfn.LOGNORM.DIST(H87,LN($K$16),$I$28,FALSE),AND($K$19<>"Normal",$K$19<>"Lognormal"),"") -> 0.0254054 | O87: =_xlfn.IFS($R$19="normal",O86+$U$19,$R$19="lognormal",EXP(LN(O86)+$U$19),AND($R$19<>"Normal",$R$19<>"Lognormal"),"") -> 5 | P87: =_xlfn.IFS($R$19="normal",_xlfn.NORM.DIST(O87,$R$16,$P$28,FALSE),$R$19="lognormal",_xlfn.LOGNORM.DIST(O87,LN($R$16),$P$28,FALSE),AND($R$19<>"Normal",$R$19<>"Lognormal"),"") -> 0.3540880
A88: =_xlfn.IFS($D$19="normal",A87+$G$19,$D$19="lognormal",EXP(LN(A87)+$G$19),AND($D$19<>"Normal",$D$19<>"Lognormal"),"") -> 9 | B88: =_xlfn.IFS($D$19="normal",_xlfn.NORM.DIST(A88,$D$16,$B$28,FALSE),$D$19="lognormal",_xlfn.LOGNORM.DIST(A88,LN($D$16),$B$28,FALSE),AND($D$19<>"Normal",$D$19<>"Lognormal"),"") -> 0.1658854 | H88: =_xlfn.IFS($K$19="normal",H87+$N$19,$K$19="lognormal",EXP(LN(H87)+$N$19),AND($K$19<>"Normal",$K$19<>"Lognormal"),"") -> 93 | I88: =_xlfn.IFS($K$19="normal",_xlfn.NORM.DIST(H88,$K$16,$I$28,FALSE),$K$19="lognormal",_xlfn.LOGNORM.DIST(H88,LN($K$16),$I$28,FALSE),AND($K$19<>"Normal",$K$19<>"Lognormal"),"") -> 0.0200848 | O88: =_xlfn.IFS($R$19="normal",O87+$U$19,$R$19="lognormal",EXP(LN(O87)+$U$19),AND($R$19<>"Normal",$R$19<>"Lognormal"),"") -> 5 | P88: =_xlfn.IFS($R$19="normal",_xlfn.NORM.DIST(O88,$R$16,$P$28,FALSE),$R$19="lognormal",_xlfn.LOGNORM.DIST(O88,LN($R$16),$P$28,FALSE),AND($R$19<>"Normal",$R$19<>"Lognormal"),"") -> 0.2799316
A89: =_xlfn.IFS($D$19="normal",A88+$G$19,$D$19="lognormal",EXP(LN(A88)+$G$19),AND($D$19<>"Normal",$D$19<>"Lognormal"),"") -> 9 | B89: =_xlfn.IFS($D$19="normal",_xlfn.NORM.DIST(A89,$D$16,$B$28,FALSE),$D$19="lognormal",_xlfn.LOGNORM.DIST(A89,LN($D$16),$B$28,FALSE),AND($D$19<>"Normal",$D$19<>"Lognormal"),"") -> 0.1298393 | H89: =_xlfn.IFS($K$19="normal",H88+$N$19,$K$19="lognormal",EXP(LN(H88)+$N$19),AND($K$19<>"Normal",$K$19<>"Lognormal"),"") -> 93 | I89: =_xlfn.IFS($K$19="normal",_xlfn.NORM.DIST(H89,$K$16,$I$28,FALSE),$K$19="lognormal",_xlfn.LOGNORM.DIST(H89,LN($K$16),$I$28,FALSE),AND($K$19<>"Normal",$K$19<>"Lognormal"),"") -> 0.0157204 | O89: =_xlfn.IFS($R$19="normal",O88+$U$19,$R$19="lognormal",EXP(LN(O88)+$U$19),AND($R$19<>"Normal",$R$19<>"Lognormal"),"") -> 5 | P89: =_xlfn.IFS($R$19="normal",_xlfn.NORM.DIST(O89,$R$16,$P$28,FALSE),$R$19="lognormal",_xlfn.LOGNORM.DIST(O89,LN($R$16),$P$28,FALSE),AND($R$19<>"Normal",$R$19<>"Lognormal"),"") -> 0.2191038
A90: =_xlfn.IFS($D$19="normal",A89+$G$19,$D$19="lognormal",EXP(LN(A89)+$G$19),AND($D$19<>"Normal",$D$19<>"Lognormal"),"") -> 9 | B90: =_xlfn.IFS($D$19="normal",_xlfn.NORM.DIST(A90,$D$16,$B$28,FALSE),$D$19="lognormal",_xlfn.LOGNORM.DIST(A90,LN($D$16),$B$28,FALSE),AND($D$19<>"Normal",$D$19<>"Lognormal"),"") -> 0.1006146 | H90: =_xlfn.IFS($K$19="normal",H89+$N$19,$K$19="lognormal",EXP(LN(H89)+$N$19),AND($K$19<>"Normal",$K$19<>"Lognormal"),"") -> 93 | I90: =_xlfn.IFS($K$19="normal",_xlfn.NORM.DIST(H90,$K$16,$I$28,FALSE),$K$19="lognormal",_xlfn.LOGNORM.DIST(H90,LN($K$16),$I$28,FALSE),AND($K$19<>"Normal",$K$19<>"Lognormal"),"") -> 0.0121820 | O90: =_xlfn.IFS($R$19="normal",O89+$U$19,$R$19="lognormal",EXP(LN(O89)+$U$19),AND($R$19<>"Normal",$R$19<>"Lognormal"),"") -> 5 | P90: =_xlfn.IFS($R$19="normal",_xlfn.NORM.DIST(O90,$R$16,$P$28,FALSE),$R$19="lognormal",_xlfn.LOGNORM.DIST(O90,LN($R$16),$P$28,FALSE),AND($R$19<>"Normal",$R$19<>"Lognormal"),"") -> 0.1697871
A91: =_xlfn.IFS($D$19="normal",A90+$G$19,$D$19="lognormal",EXP(LN(A90)+$G$19),AND($D$19<>"Normal",$D$19<>"Lognormal"),"") -> 9 | B91: =_xlfn.IFS($D$19="normal",_xlfn.NORM.DIST(A91,$D$16,$B$28,FALSE),$D$19="lognormal",_xlfn.LOGNORM.DIST(A91,LN($D$16),$B$28,FALSE),AND($D$19<>"Normal",$D$19<>"Lognormal"),"") -> 0.0771921 | H91: =_xlfn.IFS($K$19="normal",H90+$N$19,$K$19="lognormal",EXP(LN(H90)+$N$19),AND($K$19<>"Normal",$K$19<>"Lognormal"),"") -> 93 | I91: =_xlfn.IFS($K$19="normal",_xlfn.NORM.DIST(H91,$K$16,$I$28,FALSE),$K$19="lognormal",_xlfn.LOGNORM.DIST(H91,LN($K$16),$I$28,FALSE),AND($K$19<>"Normal",$K$19<>"Lognormal"),"") -> 0.0093461 | O91: =_xlfn.IFS($R$19="normal",O90+$U$19,$R$19="lognormal",EXP(LN(O90)+$U$19),AND($R$19<>"Normal",$R$19<>"Lognormal"),"") -> 5 | P91: =_xlfn.IFS($R$19="normal",_xlfn.NORM.DIST(O91,$R$16,$P$28,FALSE),$R$19="lognormal",_xlfn.LOGNORM.DIST(O91,LN($R$16),$P$28,FALSE),AND($R$19<>"Normal",$R$19<>"Lognormal"),"") -> 0.1302617
A92: =_xlfn.IFS($D$19="normal",A91+$G$19,$D$19="lognormal",EXP(LN(A91)+$G$19),AND($D$19<>"Normal",$D$19<>"Lognormal"),"") -> 9 | B92: =_xlfn.IFS($D$19="normal",_xlfn.NORM.DIST(A92,$D$16,$B$28,FALSE),$D$19="lognormal",_xlfn.LOGNORM.DIST(A92,LN($D$16),$B$28,FALSE),AND($D$19<>"Normal",$D$19<>"Lognormal"),"") -> 0.0586330 | H92: =_xlfn.IFS($K$19="normal",H91+$N$19,$K$19="lognormal",EXP(LN(H91)+$N$19),AND($K$19<>"Normal",$K$19<>"Lognormal"),"") -> 93 | I92: =_xlfn.IFS($K$19="normal",_xlfn.NORM.DIST(H92,$K$16,$I$28,FALSE),$K$19="lognormal",_xlfn.LOGNORM.DIST(H92,LN($K$16),$I$28,FALSE),AND($K$19<>"Normal",$K$19<>"Lognormal"),"") -> 0.0070991 | O92: =_xlfn.IFS($R$19="normal",O91+$U$19,$R$19="lognormal",EXP(LN(O91)+$U$19),AND($R$19<>"Normal",$R$19<>"Lognormal"),"") -> 5 | P92: =_xlfn.IFS($R$19="normal",_xlfn.NORM.DIST(O92,$R$16,$P$28,FALSE),$R$19="lognormal",_xlfn.LOGNORM.DIST(O92,LN($R$16),$P$28,FALSE),AND($R$19<>"Normal",$R$19<>"Lognormal"),"") -> 0.0989431
A93: =_xlfn.IFS($D$19="normal",A92+$G$19,$D$19="lognormal",EXP(LN(A92)+$G$19),AND($D$19<>"Normal",$D$19<>"Lognormal"),"") -> 9 | B93: =_xlfn.IFS($D$19="normal",_xlfn.NORM.DIST(A93,$D$16,$B$28,FALSE),$D$19="lognormal",_xlfn.LOGNORM.DIST(A93,LN($D$16),$B$28,FALSE),AND($D$19<>"Normal",$D$19<>"Lognormal"),"") -> 0.0440928 | H93: =_xlfn.IFS($K$19="normal",H92+$N$19,$K$19="lognormal",EXP(LN(H92)+$N$19),AND($K$19<>"Normal",$K$19<>"Lognormal"),"") -> 93 | I93: =_xlfn.IFS($K$19="normal",_xlfn.NORM.DIST(H93,$K$16,$I$28,FALSE),$K$19="lognormal",_xlfn.LOGNORM.DIST(H93,LN($K$16),$I$28,FALSE),AND($K$19<>"Normal",$K$19<>"Lognormal"),"") -> 0.0053386 | O93: =_xlfn.IFS($R$19="normal",O92+$U$19,$R$19="lognormal",EXP(LN(O92)+$U$19),AND($R$19<>"Normal",$R$19<>"Lognormal"),"") -> 5 | P93: =_xlfn.IFS($R$19="normal",_xlfn.NORM.DIST(O93,$R$16,$P$28,FALSE),$R$19="lognormal",_xlfn.LOGNORM.DIST(O93,LN($R$16),$P$28,FALSE),AND($R$19<>"Normal",$R$19<>"Lognormal"),"") -> 0.0744067
A94: =_xlfn.IFS($D$19="normal",A93+$G$19,$D$19="lognormal",EXP(LN(A93)+$G$19),AND($D$19<>"Normal",$D$19<>"Lognormal"),"") -> 9 | B94: =_xlfn.IFS($D$19="normal",_xlfn.NORM.DIST(A94,$D$16,$B$28,FALSE),$D$19="lognormal",_xlfn.LOGNORM.DIST(A94,LN($D$16),$B$28,FALSE),AND($D$19<>"Normal",$D$19<>"Lognormal"),"") -> 0.0328285 | H94: =_xlfn.IFS($K$19="normal",H93+$N$19,$K$19="lognormal",EXP(LN(H93)+$N$19),AND($K$19<>"Normal",$K$19<>"Lognormal"),"") -> 94 | I94: =_xlfn.IFS($K$19="normal",_xlfn.NORM.DIST(H94,$K$16,$I$28,FALSE),$K$19="lognormal",_xlfn.LOGNORM.DIST(H94,LN($K$16),$I$28,FALSE),AND($K$19<>"Normal",$K$19<>"Lognormal"),"") -> 0.0039748 | O94: =_xlfn.IFS($R$19="normal",O93+$U$19,$R$19="lognormal",EXP(LN(O93)+$U$19),AND($R$19<>"Normal",$R$19<>"Lognormal"),"") -> 5 | P94: =_xlfn.IFS($R$19="normal",_xlfn.NORM.DIST(O94,$R$16,$P$28,FALSE),$R$19="lognormal",_xlfn.LOGNORM.DIST(O94,LN($R$16),$P$28,FALSE),AND($R$19<>"Normal",$R$19<>"Lognormal"),"") -> 0.0553981
A95: =_xlfn.IFS($D$19="normal",A94+$G$19,$D$19="lognormal",EXP(LN(A94)+$G$19),AND($D$19<>"Normal",$D$19<>"Lognormal"),"") -> 9 | B95: =_xlfn.IFS($D$19="normal",_xlfn.NORM.DIST(A95,$D$16,$B$28,FALSE),$D$19="lognormal",_xlfn.LOGNORM.DIST(A95,LN($D$16),$B$28,FALSE),AND($D$19<>"Normal",$D$19<>"Lognormal"),"") -> 0.0241987 | H95: =_xlfn.IFS($K$19="normal",H94+$N$19,$K$19="lognormal",EXP(LN(H94)+$N$19),AND($K$19<>"Normal",$K$19<>"Lognormal"),"") -> 94 | I95: =_xlfn.IFS($K$19="normal",_xlfn.NORM.DIST(H95,$K$16,$I$28,FALSE),$K$19="lognormal",_xlfn.LOGNORM.DIST(H95,LN($K$16),$I$28,FALSE),AND($K$19<>"Normal",$K$19<>"Lognormal"),"") -> 0.0029299 | O95: =_xlfn.IFS($R$19="normal",O94+$U$19,$R$19="lognormal",EXP(LN(O94)+$U$19),AND($R$19<>"Normal",$R$19<>"Lognormal"),"") -> 5 | P95: =_xlfn.IFS($R$19="normal",_xlfn.NORM.DIST(O95,$R$16,$P$28,FALSE),$R$19="lognormal",_xlfn.LOGNORM.DIST(O95,LN($R$16),$P$28,FALSE),AND($R$19<>"Normal",$R$19<>"Lognormal"),"") -> 0.0408352
A96: =_xlfn.IFS($D$19="normal",A95+$G$19,$D$19="lognormal",EXP(LN(A95)+$G$19),AND($D$19<>"Normal",$D$19<>"Lognormal"),"") -> 9 | B96: =_xlfn.IFS($D$19="normal",_xlfn.NORM.DIST(A96,$D$16,$B$28,FALSE),$D$19="lognormal",_xlfn.LOGNORM.DIST(A96,LN($D$16),$B$28,FALSE),AND($D$19<>"Normal",$D$19<>"Lognormal"),"") -> 0.0176599 | H96: =_xlfn.IFS($K$19="normal",H95+$N$19,$K$19="lognormal",EXP(LN(H95)+$N$19),AND($K$19<>"Normal",$K$19<>"Lognormal"),"") -> 94 | I96: =_xlfn.IFS($K$19="normal",_xlfn.NORM.DIST(H96,$K$16,$I$28,FALSE),$K$19="lognormal",_xlfn.LOGNORM.DIST(H96,LN($K$16),$I$28,FALSE),AND($K$19<>"Normal",$K$19<>"Lognormal"),"") -> 0.0021382 | O96: =_xlfn.IFS($R$19="normal",O95+$U$19,$R$19="lognormal",EXP(LN(O95)+$U$19),AND($R$19<>"Normal",$R$19<>"Lognormal"),"") -> 5 | P96: =_xlfn.IFS($R$19="normal",_xlfn.NORM.DIST(O96,$R$16,$P$28,FALSE),$R$19="lognormal",_xlfn.LOGNORM.DIST(O96,LN($R$16),$P$28,FALSE),AND($R$19<>"Normal",$R$19<>"Lognormal"),"") -> 0.0298011
A97: =_xlfn.IFS($D$19="normal",A96+$G$19,$D$19="lognormal",EXP(LN(A96)+$G$19),AND($D$19<>"Normal",$D$19<>"Lognormal"),"") -> 9 | B97: =_xlfn.IFS($D$19="normal",_xlfn.NORM.DIST(A97,$D$16,$B$28,FALSE),$D$19="lognormal",_xlfn.LOGNORM.DIST(A97,LN($D$16),$B$28,FALSE),AND($D$19<>"Normal",$D$19<>"Lognormal"),"") -> 0.0127598 | H97: =_xlfn.IFS($K$19="normal",H96+$N$19,$K$19="lognormal",EXP(LN(H96)+$N$19),AND($K$19<>"Normal",$K$19<>"Lognormal"),"") -> 94 | I97: =_xlfn.IFS($K$19="normal",_xlfn.NORM.DIST(H97,$K$16,$I$28,FALSE),$K$19="lognormal",_xlfn.LOGNORM.DIST(H97,LN($K$16),$I$28,FALSE),AND($K$19<>"Normal",$K$19<>"Lognormal"),"") -> 0.0015449 | O97: =_xlfn.IFS($R$19="normal",O96+$U$19,$R$19="lognormal",EXP(LN(O96)+$U$19),AND($R$19<>"Normal",$R$19<>"Lognormal"),"") -> 5 | P97: =_xlfn.IFS($R$19="normal",_xlfn.NORM.DIST(O97,$R$16,$P$28,FALSE),$R$19="lognormal",_xlfn.LOGNORM.DIST(O97,LN($R$16),$P$28,FALSE),AND($R$19<>"Normal",$R$19<>"Lognormal"),"") -> 0.0215321
A98: =_xlfn.IFS($D$19="normal",A97+$G$19,$D$19="lognormal",EXP(LN(A97)+$G$19),AND($D$19<>"Normal",$D$19<>"Lognormal"),"") -> 9 | B98: =_xlfn.IFS($D$19="normal",_xlfn.NORM.DIST(A98,$D$16,$B$28,FALSE),$D$19="lognormal",_xlfn.LOGNORM.DIST(A98,LN($D$16),$B$28,FALSE),AND($D$19<>"Normal",$D$19<>"Lognormal"),"") -> 0.0091275 | H98: =_xlfn.IFS($K$19="normal",H97+$N$19,$K$19="lognormal",EXP(LN(H97)+$N$19),AND($K$19<>"Normal",$K$19<>"Lognormal"),"") -> 94 | I98: =_xlfn.IFS($K$19="normal",_xlfn.NORM.DIST(H98,$K$16,$I$28,FALSE),$K$19="lognormal",_xlfn.LOGNORM.DIST(H98,LN($K$16),$I$28,FALSE),AND($K$19<>"Normal",$K$19<>"Lognormal"),"") -> 0.0011051 | O98: =_xlfn.IFS($R$19="normal",O97+$U$19,$R$19="lognormal",EXP(LN(O97)+$U$19),AND($R$19<>"Normal",$R$19<>"Lognormal"),"") -> 5 | P98: =_xlfn.IFS($R$19="normal",_xlfn.NORM.DIST(O98,$R$16,$P$28,FALSE),$R$19="lognormal",_xlfn.LOGNORM.DIST(O98,LN($R$16),$P$28,FALSE),AND($R$19<>"Normal",$R$19<>"Lognormal"),"") -> 0.0154027
